Workbook

Sheet Title
F7: Indicative Viability Calculator
M17: =TODAY() -> 2018-12-19
F19: Disclaimer
F20: This 'Indicative Viability Calculator' has been prepared to for the general use of the investors and facilitate investors to help project the viability of their investments.
F21: This 'Indicative Viability Calculator' has not been prepared considering individual's investment objectives, financial situations or particular needs.
F22: Any person considering potential investment opportunities should carry out their own due diligence in respect of such opportunity and make their own commercial assessment of an investment opportunity after seeking the advice from this 'indicative viability calculator'.
F23: The'Indicative Viability Calculator' does not purport to be all-inclusive or necessarily to contain all the information and may be subject to updating, revision or amendment.
F24: The developer of this calculator, under no circumstances whatsoever, should be held liable for any loss of profit resulted from investment made considering this 'indicative viability calculator'
F25: This calculator works in MS Excel 2013(Macro Enabled)

Sheet Dashboard
G1: Legend
C2: Indicative Viability Calculator | G2: Input Cells
G3: Calculated value
M5: Note:
M6: FY 2019 below refers to FY2018-19 and so on
C8: Dashboard | O8: =YEAR(H12)+1 -> 2020 | P8: =O8+1 -> 2021 | Q8: =P8+1 -> 2022 | R8: 2023 | S8: 2024 | T8: 2025 | U8: 2026 | V8: 2027 | W8: 2028 | X8: 2029 | Y8: 2030 | Z8: 2031 | AA8: 2032 | AB8: 2033 | AC8: 2034 | AD8: 2035 | AE8: 2036 | AF8: 2037 | AG8: 2038 | AH8: 2039 | AI8: 2040 | AJ8: 2041 | AK8: 2042 | AL8: 2043 | AM8: 2044 | AN8: 2045 | AO8: 2046 | AP8: 2047
C9: Field Details | G9: Project Timelines | M9: Production Profile
C10: In-Place Reserves | H10: Start | I10: Duration (Months) | J10: End | L10: Choose method | M10: User Input
C11: Oil | D11: 12 | E11: MMT | L11: =MATCH(M10,$C$64:$C$65,0) -> 1
C12: Gas | D12: 2 | E12: BCM | G12: Appraisal | H12: 2019-04-01 | I12: 12 | J12: =EDATE(H12,I12)-1 -> 2020-03-31 | M12: For User Input Option
C13: Field Type | D13: Onland | G13: Well Development | H13: 2019-04-01 | I13: 24 | J13: =EDATE(H13,I13)-1 -> 2021-03-31 | M13: Please provide the year wise production
C14: No. of development wells in the field | D14: 2 | G14: Facilities Development | H14: 2019-04-01 | I14: 24 | J14: =EDATE(H14,I14)-1 -> 2021-03-31
C15: Recovery factor | D15: 0.25 | G15: Operations/Commercial Production | H15: 2020-04-01 | I15: 144 | J15: =EDATE(H15,I15)-1 -> 2032-03-31 | M15: Production Profile
M16: Percentage of total production | N16: =SUM(O16:AN16) -> 1 | O16: 0 | P16: 0 | Q16: 0.21 | R16: 0.05 | S16: 0.06 | T16: 0.07 | U16: 0.08 | V16: 0.12 | W16: 0.09 | X16: 0.1 | Y16: 0.08 | Z16: 0.07 | AA16: 0.04 | AB16: 0.03
C17: Market Parameters | G17: Cost Parameters
A18: =IF(D17="Market Price",1,2) -> 2 | B18: User Input | C18: Crude pricing choice | D18: User to Input the Crude Oil Price | M18: For Model Pre-defined Option
B19: Analyst Forecast | C19: Crude oil | D19: 80 | E19: USD per bbl | G19: Capex per well (USD Mn) | H19: Onland | I19: Offshore | J19: Deepwater | M19: (Please fill in the ramp up period)
C20: Gas Price | D20: 10 | E20: USD per mmbtu | G20: Appraisal Cost | H20: 0.125 | I20: 0.75 | J20: 1.5
C21: Exchange Rate (USD/INR) | D21: 67 | G21: Well development cost | H21: 2.5 | I21: 15 | J21: 30 | M21: Ramp up period | N21: 3 | O21: years
G22: Surface facilities | H22: =H21*10% -> 0.25 | I22: 10 | J22: 30 | M22: Plateau Period | N22: =N24-SUM(N23,N21) -> 6 | O22: years
C23: Revenue Share | G23: Opex (USD Mn) | M23: Ramp down period | N23: =N21 -> 3 | O23: years
C24: Government share at LRP | D24: 0.2 | G24: Processing Cost - Oil | H24: 5 | I24: USD per Barrel | M24: Total project life | N24: =I15/12 -> 12 | O24: years
C25: Government share at HRP | D25: 0.5 | G25: Processing Cost - Gas | H25: 0.5 | I25: USD per mmbtu
C27: Royalty | G27: Financing
C28: Oil | D28: =INDEX(Inputs!$C$171:$D$173,MATCH($D$13,Inputs!$C$171:$C$173,0),2) -> 0.125 | E28: =IF($D$13="Deepwater","for first 7 years and then 5%","") ->  | G28: Share of Debt Financing | H28: 0.2
C29: Gas | D29: =INDEX(Inputs!$C$175:$D$177,MATCH($D$13,Inputs!$C$175:$C$177,0),2) -> 0.1 | E29: =IF($D$13="Deepwater","for first 7 years and then 5%","") ->  | G29: Interest Rate | H29: 0.1
G30: Repayment Period | H30: 10 | I30: years after construction
C34: Output
C36: Project NPV | D36: =FS!D35 -> 476.8847966 | E36: USD Mn
C37: Pre-Tax Project IRR | D37: =FS!D36 -> 5.616584407
C38: Total Investment | D38: =Capex!G16+Capex!G22 -> 6.2699 | E38: USD Mn
C40: Government Share NPV | D40: =FS!D64 -> 349.3984788 | E40: USD Mn
B64: 1 | C64: User Input
B65: 2 | C65: Model Pre-defined

Sheet Inputs (hidden)
I1: Period No. | J1: =Timings!J1 -> 1 | K1: =Timings!K1 -> 2 | L1: =Timings!L1 -> 3 | M1: =Timings!M1 -> 4 | N1: =Timings!N1 -> 5 | O1: =Timings!O1 -> 6 | P1: =Timings!P1 -> 7 | Q1: =Timings!Q1 -> 8 | R1: =Timings!R1 -> 9 | S1: =Timings!S1 -> 10 | T1: =Timings!T1 -> 11 | U1: =Timings!U1 -> 12 | V1: =Timings!V1 -> 13 | W1: =Timings!W1 -> 14 | X1: =Timings!X1 -> 15 | Y1: =Timings!Y1 -> 16 | Z1: =Timings!Z1 -> 17 | AA1: =Timings!AA1 -> 0 | AB1: =Timings!AB1 -> 0 | AC1: =Timings!AC1 -> 0 | AD1: =Timings!AD1 -> 0 | AE1: =Timings!AE1 -> 0 | AF1: =Timings!AF1 -> 0 | AG1: =Timings!AG1 -> 0 | AH1: =Timings!AH1 -> 0 | AI1: =Timings!AI1 -> 0 | AJ1: =Timings!AJ1 -> 0 | AK1: =Timings!AK1 -> 0 | AL1: =Timings!AL1 -> 0 | AM1: =Timings!AM1 -> 0
C2: Input/ Assumptions | I2: Start Date | J2: =Timings!J2 -> 2019-04-01 | K2: =Timings!K2 -> 2020-04-01 | L2: =Timings!L2 -> 2021-04-01 | M2: =Timings!M2 -> 2022-04-01 | N2: =Timings!N2 -> 2023-04-01 | O2: =Timings!O2 -> 2024-04-01 | P2: =Timings!P2 -> 2025-04-01 | Q2: =Timings!Q2 -> 2026-04-01 | R2: =Timings!R2 -> 2027-04-01 | S2: =Timings!S2 -> 2028-04-01 | T2: =Timings!T2 -> 2029-04-01 | U2: =Timings!U2 -> 2030-04-01 | V2: =Timings!V2 -> 2031-04-01 | W2: =Timings!W2 -> 2032-04-01 | X2: =Timings!X2 -> 2033-04-01 | Y2: =Timings!Y2 -> 2034-04-01 | Z2: =Timings!Z2 -> 2035-04-01 | AA2: =Timings!AA2 -> 2036-04-01 | AB2: =Timings!AB2 -> 2037-04-01 | AC2: =Timings!AC2 -> 2038-04-01 | AD2: =Timings!AD2 -> 2039-04-01 | AE2: =Timings!AE2 -> 2040-04-01 | AF2: =Timings!AF2 -> 2041-04-01 | AG2: =Timings!AG2 -> 2042-04-01 | AH2: =Timings!AH2 -> 2043-04-01 | AI2: =Timings!AI2 -> 2044-04-01 | AJ2: =Timings!AJ2 -> 2045-04-01 | AK2: =Timings!AK2 -> 2046-04-01 | AL2: =Timings!AL2 -> 2047-04-01 | AM2: =Timings!AM2 -> 2048-04-01
I3: End Date | J3: =Timings!J3 -> 2020-03-31 | K3: =Timings!K3 -> 2021-03-31 | L3: =Timings!L3 -> 2022-03-31 | M3: =Timings!M3 -> 2023-03-31 | N3: =Timings!N3 -> 2024-03-31 | O3: =Timings!O3 -> 2025-03-31 | P3: =Timings!P3 -> 2026-03-31 | Q3: =Timings!Q3 -> 2027-03-31 | R3: =Timings!R3 -> 2028-03-31 | S3: =Timings!S3 -> 2029-03-31 | T3: =Timings!T3 -> 2030-03-31 | U3: =Timings!U3 -> 2031-03-31 | V3: =Timings!V3 -> 2032-03-31 | W3: =Timings!W3 -> 2033-03-31 | X3: =Timings!X3 -> 2034-03-31 | Y3: =Timings!Y3 -> 2035-03-31 | Z3: =Timings!Z3 -> 2036-03-31 | AA3: =Timings!AA3 -> 2037-03-31 | AB3: =Timings!AB3 -> 2038-03-31 | AC3: =Timings!AC3 -> 2039-03-31 | AD3: =Timings!AD3 -> 2040-03-31 | AE3: =Timings!AE3 -> 2041-03-31 | AF3: =Timings!AF3 -> 2042-03-31 | AG3: =Timings!AG3 -> 2043-03-31 | AH3: =Timings!AH3 -> 2044-03-31 | AI3: =Timings!AI3 -> 2045-03-31 | AJ3: =Timings!AJ3 -> 2046-03-31 | AK3: =Timings!AK3 -> 2047-03-31 | AL3: =Timings!AL3 -> 2048-03-31 | AM3: =Timings!AM3 -> 2049-03-31
I4: Year | J4: =Timings!J4 -> 2020 | K4: =Timings!K4 -> 2021 | L4: =Timings!L4 -> 2022 | M4: =Timings!M4 -> 2023 | N4: =Timings!N4 -> 2024 | O4: =Timings!O4 -> 2025 | P4: =Timings!P4 -> 2026 | Q4: =Timings!Q4 -> 2027 | R4: =Timings!R4 -> 2028 | S4: =Timings!S4 -> 2029 | T4: =Timings!T4 -> 2030 | U4: =Timings!U4 -> 2031 | V4: =Timings!V4 -> 2032 | W4: =Timings!W4 -> 2033 | X4: =Timings!X4 -> 2034 | Y4: =Timings!Y4 -> 2035 | Z4: =Timings!Z4 -> 2036 | AA4: =Timings!AA4 -> 2037 | AB4: =Timings!AB4 -> 2038 | AC4: =Timings!AC4 -> 2039 | AD4: =Timings!AD4 -> 2040 | AE4: =Timings!AE4 -> 2041 | AF4: =Timings!AF4 -> 2042 | AG4: =Timings!AG4 -> 2043 | AH4: =Timings!AH4 -> 2044 | AI4: =Timings!AI4 -> 2045 | AJ4: =Timings!AJ4 -> 2046 | AK4: =Timings!AK4 -> 2047 | AL4: =Timings!AL4 -> 2048 | AM4: =Timings!AM4 -> 2049
I5: Appraisal | J5: =Timings!J5 -> 1 | K5: =Timings!K5 -> 0 | L5: =Timings!L5 -> 0 | M5: =Timings!M5 -> 0 | N5: =Timings!N5 -> 0 | O5: =Timings!O5 -> 0 | P5: =Timings!P5 -> 0 | Q5: =Timings!Q5 -> 0 | R5: =Timings!R5 -> 0 | S5: =Timings!S5 -> 0 | T5: =Timings!T5 -> 0 | U5: =Timings!U5 -> 0 | V5: =Timings!V5 -> 0 | W5: =Timings!W5 -> 0 | X5: =Timings!X5 -> 0 | Y5: =Timings!Y5 -> 0 | Z5: =Timings!Z5 -> 0 | AA5: =Timings!AA5 -> 0 | AB5: =Timings!AB5 -> 0 | AC5: =Timings!AC5 -> 0 | AD5: =Timings!AD5 -> 0 | AE5: =Timings!AE5 -> 0 | AF5: =Timings!AF5 -> 0 | AG5: =Timings!AG5 -> 0 | AH5: =Timings!AH5 -> 0 | AI5: =Timings!AI5 -> 0 | AJ5: =Timings!AJ5 -> 0 | AK5: =Timings!AK5 -> 0 | AL5: =Timings!AL5 -> 0 | AM5: =Timings!AM5 -> 0
I6: Well Development | J6: =Timings!J6 -> 1 | K6: =Timings!K6 -> 1 | L6: =Timings!L6 -> 0 | M6: =Timings!M6 -> 0 | N6: =Timings!N6 -> 0 | O6: =Timings!O6 -> 0 | P6: =Timings!P6 -> 0 | Q6: =Timings!Q6 -> 0 | R6: =Timings!R6 -> 0 | S6: =Timings!S6 -> 0 | T6: =Timings!T6 -> 0 | U6: =Timings!U6 -> 0 | V6: =Timings!V6 -> 0 | W6: =Timings!W6 -> 0 | X6: =Timings!X6 -> 0 | Y6: =Timings!Y6 -> 0 | Z6: =Timings!Z6 -> 0 | AA6: =Timings!AA6 -> 0 | AB6: =Timings!AB6 -> 0 | AC6: =Timings!AC6 -> 0 | AD6: =Timings!AD6 -> 0 | AE6: =Timings!AE6 -> 0 | AF6: =Timings!AF6 -> 0 | AG6: =Timings!AG6 -> 0 | AH6: =Timings!AH6 -> 0 | AI6: =Timings!AI6 -> 0 | AJ6: =Timings!AJ6 -> 0 | AK6: =Timings!AK6 -> 0 | AL6: =Timings!AL6 -> 0 | AM6: =Timings!AM6 -> 0
I7: Facilities | J7: =Timings!J7 -> 1 | K7: =Timings!K7 -> 1 | L7: =Timings!L7 -> 0 | M7: =Timings!M7 -> 0 | N7: =Timings!N7 -> 0 | O7: =Timings!O7 -> 0 | P7: =Timings!P7 -> 0 | Q7: =Timings!Q7 -> 0 | R7: =Timings!R7 -> 0 | S7: =Timings!S7 -> 0 | T7: =Timings!T7 -> 0 | U7: =Timings!U7 -> 0 | V7: =Timings!V7 -> 0 | W7: =Timings!W7 -> 0 | X7: =Timings!X7 -> 0 | Y7: =Timings!Y7 -> 0 | Z7: =Timings!Z7 -> 0 | AA7: =Timings!AA7 -> 0 | AB7: =Timings!AB7 -> 0 | AC7: =Timings!AC7 -> 0 | AD7: =Timings!AD7 -> 0 | AE7: =Timings!AE7 -> 0 | AF7: =Timings!AF7 -> 0 | AG7: =Timings!AG7 -> 0 | AH7: =Timings!AH7 -> 0 | AI7: =Timings!AI7 -> 0 | AJ7: =Timings!AJ7 -> 0 | AK7: =Timings!AK7 -> 0 | AL7: =Timings!AL7 -> 0 | AM7: =Timings!AM7 -> 0
I8: Operations | J8: =Timings!J8 -> 0 | K8: =Timings!K8 -> 1 | L8: =Timings!L8 -> 1 | M8: =Timings!M8 -> 1 | N8: =Timings!N8 -> 1 | O8: =Timings!O8 -> 1 | P8: =Timings!P8 -> 1 | Q8: =Timings!Q8 -> 1 | R8: =Timings!R8 -> 1 | S8: =Timings!S8 -> 1 | T8: =Timings!T8 -> 1 | U8: =Timings!U8 -> 1 | V8: =Timings!V8 -> 1 | W8: =Timings!W8 -> 0 | X8: =Timings!X8 -> 0 | Y8: =Timings!Y8 -> 0 | Z8: =Timings!Z8 -> 0 | AA8: =Timings!AA8 -> 0 | AB8: =Timings!AB8 -> 0 | AC8: =Timings!AC8 -> 0 | AD8: =Timings!AD8 -> 0 | AE8: =Timings!AE8 -> 0 | AF8: =Timings!AF8 -> 0 | AG8: =Timings!AG8 -> 0 | AH8: =Timings!AH8 -> 0 | AI8: =Timings!AI8 -> 0 | AJ8: =Timings!AJ8 -> 0 | AK8: =Timings!AK8 -> 0 | AL8: =Timings!AL8 -> 0 | AM8: =Timings!AM8 -> 0
B10: =MAX($B$1:B9)+1 -> 1 | C10: Model Set-up
C12: Field Type | E12: =Dashboard!D13 -> Onland
B14: =MAX($B$1:B13)+1 -> 2 | C14: Model period
C16: First model period | E16: 2019-04-01
C17: No. of years of model | D17: years | E17: 17
C18: Final Model period | E18: =DATE(YEAR(E16)+E17,MONTH(E16), DAY(E16))-1 -> 2036-03-31
B20: =MAX($B$1:B19)+1 -> 3 | C20: Project Timelines
C22: Appraisal
C23: =$C$22&" start" -> Appraisal start | E23: =Dashboard!H12 -> 2019-04-01
C24: =$C$22&" duration" -> Appraisal duration | D24: months | E24: =Dashboard!I12 -> 12
C25: =$C$22&" end" -> Appraisal end | E25: =Dashboard!J12 -> 2020-03-31
C27: Well Development
C28: =$C$27&" start" -> Well Development start | E28: =Dashboard!H13 -> 2019-04-01
C29: =$C$27&" duration" -> Well Development duration | D29: months | E29: =Dashboard!I13 -> 24
C30: =$C$27&" end" -> Well Development end | E30: =Dashboard!J13 -> 2021-03-31
C32: Facilities Development
C33: =$C$32&" start" -> Facilities Development start | E33: =Dashboard!H14 -> 2019-04-01
C34: =$C$32&" duration" -> Facilities Development duration | D34: months | E34: =Dashboard!I14 -> 24
C35: =$C$32&" end" -> Facilities Development end | E35: =Dashboard!J14 -> 2021-03-31
C37: Operations
C38: =$C$37&" start" -> Operations start | E38: =Dashboard!H15 -> 2020-04-01
C39: =$C$37&" duration" -> Operations duration | D39: months | E39: =15*12 -> 180
C40: =$C$37&" end" -> Operations end | E40: =Dashboard!J15 -> 2032-03-31
B42: =MAX($B$1:B41)+1 -> 4 | C42: Inputs
C44: No. of wells in field | E44: =Dashboard!D14 -> 2
C45: Internal Consumption - Oil | E45: 0
C46: Internal Consumption - Gas | E46: 0
C49: Production Profile
C50: Choose the case
C51: Oil | D51: MMT | E51: =SUM(J51:AM51) -> 3 | J51: =Profile!K11 -> 0 | K51: =Profile!L11 -> 0 | L51: =Profile!M11 -> 0.63 | M51: =Profile!N11 -> 0.15 | N51: =Profile!O11 -> 0.18 | O51: =Profile!P11 -> 0.21 | P51: =Profile!Q11 -> 0.24 | Q51: =Profile!R11 -> 0.36 | R51: =Profile!S11 -> 0.27 | S51: =Profile!T11 -> 0.3 | T51: =Profile!U11 -> 0.24 | U51: =Profile!V11 -> 0.21 | V51: =Profile!W11 -> 0.12 | W51: =Profile!X11 -> 0.09 | X51: =Profile!Y11 -> 0 | Y51: =Profile!Z11 -> 0 | Z51: =Profile!AA11 -> 0 | AA51: =Profile!AB11 -> 0 | AB51: =Profile!AC11 -> 0 | AC51: =Profile!AD11 -> 0 | AD51: =Profile!AE11 -> 0 | AE51: =Profile!AF11 -> 0 | AF51: =Profile!AG11 -> 0 | AG51: =Profile!AH11 -> 0 | AH51: =Profile!AI11 -> 0 | AI51: =Profile!AJ11 -> 0 | AJ51: =Profile!AK11 -> 0 | AK51: =Profile!AL11 -> 0 | AL51: =Profile!AM11 -> 0 | AM51: =Profile!AN11 -> 0
C52: Gas | D52: BCM | E52: =SUM(J52:AM52) -> 0.5 | J52: =Profile!K12 -> 0 | K52: =Profile!L12 -> 0 | L52: =Profile!M12 -> 0.105 | M52: =Profile!N12 -> 0.025 | N52: =Profile!O12 -> 0.03 | O52: =Profile!P12 -> 0.035 | P52: =Profile!Q12 -> 0.04 | Q52: =Profile!R12 -> 0.06 | R52: =Profile!S12 -> 0.045 | S52: =Profile!T12 -> 0.05 | T52: =Profile!U12 -> 0.04 | U52: =Profile!V12 -> 0.035 | V52: =Profile!W12 -> 0.02 | W52: =Profile!X12 -> 0.015 | X52: =Profile!Y12 -> 0 | Y52: =Profile!Z12 -> 0 | Z52: =Profile!AA12 -> 0 | AA52: =Profile!AB12 -> 0 | AB52: =Profile!AC12 -> 0 | AC52: =Profile!AD12 -> 0 | AD52: =Profile!AE12 -> 0 | AE52: =Profile!AF12 -> 0 | AF52: =Profile!AG12 -> 0 | AG52: =Profile!AH12 -> 0 | AH52: =Profile!AI12 -> 0 | AI52: =Profile!AJ12 -> 0 | AJ52: =Profile!AK12 -> 0 | AK52: =Profile!AL12 -> 0 | AL52: =Profile!AM12 -> 0 | AM52: =Profile!AN12 -> 0
C54: Internal Consumption/Losses
C55: =C51 -> Oil | E55: =SUM(J55:AM55) -> 0 | J55: =$E$45*J51 -> 0 | K55: =$E$45*K51 -> 0 | L55: 0 | M55: 0 | N55: 0 | O55: 0 | P55: 0 | Q55: 0 | R55: 0 | S55: 0 | T55: 0 | U55: 0 | V55: 0 | W55: 0 | X55: 0 | Y55: 0 | Z55: 0 | AA55: 0 | AB55: 0 | AC55: 0 | AD55: 0 | AE55: 0 | AF55: 0 | AG55: 0 | AH55: 0 | AI55: 0 | AJ55: 0 | AK55: 0 | AL55: 0 | AM55: 0
C56: =C52 -> Gas | E56: =SUM(J56:AM56) -> 0 | J56: =$E$46*J52 -> 0 | K56: =$E$46*K52 -> 0 | L56: 0 | M56: 0 | N56: 0 | O56: 0 | P56: 0 | Q56: 0 | R56: 0 | S56: 0 | T56: 0 | U56: 0 | V56: 0 | W56: 0 | X56: 0 | Y56: 0 | Z56: 0 | AA56: 0 | AB56: 0 | AC56: 0 | AD56: 0 | AE56: 0 | AF56: 0 | AG56: 0 | AH56: 0 | AI56: 0 | AJ56: 0 | AK56: 0 | AL56: 0 | AM56: 0
C58: Pricing
D59: Chose Method | E59: =Dashboard!D18 -> User to Input the Crude Oil Price
A60: =IF(E59="Market Price",1,2) -> 2 | B60: User Input | C60: Oil Price | D60: USD per barrel | E60: =Dashboard!D19 -> 80 | J60: 76.245338 | K60: 77.68927 | L60: 79.133179 | M60: 81.286972 | N60: 83.635468 | O60: 86.087494 | P60: 88.602539 | Q60: 91.12915 | R60: 93.863029 | S60: 96.678917 | T60: 99.579285 | U60: 102.566666 | V60: 105.643661 | W60: 108.812973 | X60: 112.077362 | Y60: 115.433838 | Z60: 118.711304 | AA60: 122.203247 | AB60: 125.813187 | AC60: 129.326111 | AD60: 133.175934 | AE60: 137.41243 | AF60: 141.276154
B61: Analyst Forecast | C61: Gas Price | D61: USD per mmbtu | E61: =Dashboard!D20 -> 10
C63: Constants
C64: Oil
C65: Specific Gravity Oil | E65: 0.876
C66: barrel/kilolitre | E66: 6.2898
C68: Gas
C69: Cal/BTU | E69: 252
C70: Kcal/m3 | E70: 11061
C71: BTU/m3 | E71: =1000/E69*E70 -> 43892.85714
C74: Capex | E74: Onland | F74: Offshore | G74: Deepwater
C75: =Dashboard!G20 -> Appraisal Cost | D75: USD Mn | E75: =Dashboard!H20 -> 0.125 | F75: =Dashboard!I20 -> 0.75 | G75: =Dashboard!J20 -> 1.5 | H75: per well | I75: =IF($E$12="Onland",1,IF($E$12="Offshore",2,3)) -> 1 | J75: =IFERROR((1/COUNTIF($J5:$AM5,1))*J5,) -> 1 | K75: =IFERROR((1/COUNTIF($J5:$AM5,1))*K5,) -> 0 | L75: 0 | M75: 0 | N75: 0 | O75: 0 | P75: 0 | Q75: 0 | R75: 0 | S75: 0 | T75: 0 | U75: 0 | V75: 0 | W75: 0 | X75: 0 | Y75: 0 | Z75: 0 | AA75: 0 | AB75: 0 | AC75: 0 | AD75: 0 | AE75: 0 | AF75: 0 | AG75: 0 | AH75: 0 | AI75: 0 | AJ75: 0 | AK75: 0 | AL75: 0 | AM75: 0
C76: =Dashboard!G21 -> Well development cost | D76: USD Mn | E76: =Dashboard!H21 -> 2.5 | F76: =Dashboard!I21 -> 15 | G76: =Dashboard!J21 -> 30 | H76: per well | J76: =(1/COUNTIF($J6:$AM6,1))*J6 -> 0.5 | K76: 0.5 | L76: 0 | M76: 0 | N76: 0 | O76: 0 | P76: 0 | Q76: 0 | R76: 0 | S76: 0 | T76: 0 | U76: 0 | V76: 0 | W76: 0 | X76: 0 | Y76: 0 | Z76: =(1/COUNTIF($J6:$AM6,1))*Z6 -> 0 | AA76: 0 | AB76: 0 | AC76: 0 | AD76: 0 | AE76: 0 | AF76: 0 | AG76: 0 | AH76: 0 | AI76: 0 | AJ76: 0 | AK76: 0 | AL76: 0 | AM76: 0
C77: =Dashboard!G22 -> Surface facilities | D77: USD Mn | E77: =Dashboard!H22 -> 0.25 | F77: =Dashboard!I22 -> 10 | G77: =Dashboard!J22 -> 30 | H77: per well | J77: 0.5 | K77: 0.5 | L77: 0 | M77: 0 | N77: 0 | O77: 0 | P77: 0 | Q77: 0 | R77: 0 | S77: 0 | T77: 0 | U77: 0 | V77: 0 | W77: 0 | X77: 0 | Y77: 0 | Z77: 0 | AA77: 0 | AB77: 0 | AC77: 0 | AD77: 0 | AE77: 0 | AF77: 0 | AG77: 0 | AH77: 0 | AI77: 0 | AJ77: 0 | AK77: 0 | AL77: 0 | AM77: 0
C78: Evacuation infrastructure cost (pipeline etc.) | D78: USD Mn | H78: per well | J78: 0 | K78: 0 | L78: 0 | M78: 0 | N78: 0 | O78: 0 | P78: 0 | Q78: 0 | R78: 0 | S78: 0 | T78: 0 | U78: 0 | V78: 0 | W78: 0 | X78: 0 | Y78: 0 | Z78: 0 | AA78: 0 | AB78: 0 | AC78: 0 | AD78: 0 | AE78: 0 | AF78: 0 | AG78: 0 | AH78: 0 | AI78: 0 | AJ78: 0 | AK78: 0 | AL78: 0 | AM78: 0
C79: Any other additional cost | D79: USD Mn | H79: per well | J79: 0 | K79: 0 | L79: 0 | M79: 0 | N79: 0 | O79: 0 | P79: 0 | Q79: 0 | R79: 0 | S79: 0 | T79: 0 | U79: 0 | V79: 0 | W79: 0 | X79: 0 | Y79: 0 | Z79: 0 | AA79: 0 | AB79: 0 | AC79: 0 | AD79: 0 | AE79: 0 | AF79: 0 | AG79: 0 | AH79: 0 | AI79: 0 | AJ79: 0 | AK79: 0 | AL79: 0 | AM79: 0
C80: Abandonment Cost | D80: USD Mn | H80: per well | J80: 0 | K80: 0 | L80: 0 | M80: 0 | N80: 0 | O80: 0 | P80: 0 | Q80: 0 | R80: 0 | S80: 0 | T80: 0 | U80: 0 | V80: 0 | W80: 0 | X80: 0 | Y80: 0 | Z80: 0 | AA80: 0 | AB80: 0 | AC80: 0 | AD80: 0 | AE80: 0 | AF80: 0 | AG80: 0 | AH80: 0 | AI80: 0 | AJ80: 0 | AK80: 0 | AL80: 0 | AM80: 0
C82: Capex
C83: =C75 -> Appraisal Cost | D83: =D75 -> USD Mn | E83: =SUM(J83:AM83) -> 0.25 | J83: =IF($I$75=2,$F75*$E$44*J75,IF($I$75=1,$E75*$E$44*J75,$G75*$E$44*J75)) -> 0.25 | K83: =IF($I$75=2,$F75*$E$44*K75,IF($I$75=1,$E75*$E$44*K75,$G75*$E$44*K75)) -> 0 | L83: 0 | M83: 0 | N83: 0 | O83: 0 | P83: 0 | Q83: 0 | R83: 0 | S83: 0 | T83: 0 | U83: 0 | V83: 0 | W83: 0 | X83: 0 | Y83: 0 | Z83: 0 | AA83: 0 | AB83: 0 | AC83: 0 | AD83: 0 | AE83: 0 | AF83: 0 | AG83: 0 | AH83: 0 | AI83: 0 | AJ83: 0 | AK83: 0 | AL83: 0 | AM83: 0
C84: Well development cost | D84: USD Mn | E84: =SUM(J84:AM84) -> 5 | J84: =IF($I$75=2,$F76*$E$44*J76,IF($I$75=1,$E76*$E$44*J76,$G76*$E$44*J76)) -> 2.5 | K84: 2.5 | L84: 0 | M84: 0 | N84: 0 | O84: 0 | P84: 0 | Q84: 0 | R84: 0 | S84: 0 | T84: 0 | U84: 0 | V84: 0 | W84: 0 | X84: 0 | Y84: 0 | Z84: 0 | AA84: 0 | AB84: 0 | AC84: 0 | AD84: 0 | AE84: 0 | AF84: 0 | AG84: 0 | AH84: 0 | AI84: 0 | AJ84: 0 | AK84: 0 | AL84: 0 | AM84: 0
C85: Surface facilities | D85: USD Mn | E85: 0.5 | J85: 0.25 | K85: 0.25 | L85: 0 | M85: 0 | N85: 0 | O85: 0 | P85: 0 | Q85: 0 | R85: 0 | S85: 0 | T85: 0 | U85: 0 | V85: 0 | W85: 0 | X85: 0 | Y85: 0 | Z85: 0 | AA85: 0 | AB85: 0 | AC85: 0 | AD85: 0 | AE85: 0 | AF85: 0 | AG85: 0 | AH85: 0 | AI85: 0 | AJ85: 0 | AK85: 0 | AL85: 0 | AM85: 0
C86: Evacuation infrastructure cost (pipeline etc.) | D86: USD Mn | E86: 0 | J86: 0 | K86: 0 | L86: 0 | M86: 0 | N86: 0 | O86: 0 | P86: 0 | Q86: 0 | R86: 0 | S86: 0 | T86: 0 | U86: 0 | V86: 0 | W86: 0 | X86: 0 | Y86: 0 | Z86: 0 | AA86: 0 | AB86: 0 | AC86: 0 | AD86: 0 | AE86: 0 | AF86: 0 | AG86: 0 | AH86: 0 | AI86: 0 | AJ86: 0 | AK86: 0 | AL86: 0 | AM86: 0
C87: Any other additional cost | D87: USD Mn | E87: 0 | J87: 0 | K87: 0 | L87: 0 | M87: 0 | N87: 0 | O87: 0 | P87: 0 | Q87: 0 | R87: 0 | S87: 0 | T87: 0 | U87: 0 | V87: 0 | W87: 0 | X87: 0 | Y87: 0 | Z87: 0 | AA87: 0 | AB87: 0 | AC87: 0 | AD87: 0 | AE87: 0 | AF87: 0 | AG87: 0 | AH87: 0 | AI87: 0 | AJ87: 0 | AK87: 0 | AL87: 0 | AM87: 0
C88: Abandonment Cost | D88: USD Mn | E88: 0 | J88: 0 | K88: 0 | L88: 0 | M88: 0 | N88: 0 | O88: 0 | P88: 0 | Q88: 0 | R88: 0 | S88: 0 | T88: 0 | U88: 0 | V88: 0 | W88: 0 | X88: 0 | Y88: 0 | Z88: 0 | AA88: 0 | AB88: 0 | AC88: 0 | AD88: 0 | AE88: 0 | AF88: 0 | AG88: 0 | AH88: 0 | AI88: 0 | AJ88: 0 | AK88: 0 | AL88: 0 | AM88: 0
C90: Upfront Payment
C91: Upfront Payment | D91: USD Mn | E91: =SUM(J91:AM91) -> 0 | J91: 0 | K91: 0 | L91: 0 | M91: 0 | N91: 0 | O91: 0 | P91: 0 | Q91: 0 | R91: 0 | S91: 0 | T91: 0 | U91: 0 | V91: 0 | W91: 0 | X91: 0 | Y91: 0 | Z91: 0 | AA91: 0 | AB91: 0 | AC91: 0 | AD91: 0 | AE91: 0 | AF91: 0 | AG91: 0 | AH91: 0 | AI91: 0 | AJ91: 0 | AK91: 0 | AL91: 0 | AM91: 0
C94: Opex
C95: Processing cost - Oil | D95: USD | E95: =Dashboard!H24 -> 5 | F95: per Barrel
C96: Processing cost - Gas | D96: USD | E96: =Dashboard!H25 -> 0.5 | F96: per mmbtu
C98: Processing cost - Oil | D98: USD Mn | E98: =SUM(J98:AM98) -> 107.7020548 | J98: =(J51*10^6*10^3)/$E$65/10^3*$E$66*$E$95/10^6 -> 0 | K98: =(K51*10^6*10^3)/$E$65/10^3*$E$66*$E$95/10^6 -> 0 | L98: 22.61743151 | M98: 5.38510274 | N98: 6.462123288 | O98: 7.539143836 | P98: 8.616164384 | Q98: 12.92424658 | R98: 9.693184932 | S98: 10.77020548 | T98: 8.616164384 | U98: 7.539143836 | V98: 4.308082192 | W98: 3.231061644 | X98: 0 | Y98: 0 | Z98: 0 | AA98: 0 | AB98: 0 | AC98: 0 | AD98: 0 | AE98: 0 | AF98: 0 | AG98: 0 | AH98: 0 | AI98: 0 | AJ98: 0 | AK98: 0 | AL98: 0 | AM98: 0
C99: Processing cost - Gas | D99: USD Mn | E99: =SUM(J99:AM99) -> 10.97321429 | J99: =(J52*10^9*$E$71/10^6)*$E$96/10^6 -> 0 | K99: =(K52*10^9*$E$71/10^6)*$E$96/10^6 -> 0 | L99: 2.304375 | M99: 0.5486607143 | N99: 0.6583928571 | O99: 0.768125 | P99: 0.8778571429 | Q99: 1.316785714 | R99: 0.9875892857 | S99: 1.097321429 | T99: 0.8778571429 | U99: 0.768125 | V99: 0.4389285714 | W99: 0.3291964286 | X99: 0 | Y99: 0 | Z99: 0 | AA99: 0 | AB99: 0 | AC99: 0 | AD99: 0 | AE99: 0 | AF99: 0 | AG99: 0 | AH99: 0 | AI99: 0 | AJ99: 0 | AK99: 0 | AL99: 0 | AM99: 0
C100: Gas transportation | D100: USD | E100: 0 | F100: per mmbtu
C102: Financing
C103: Debt financing | E103: =Dashboard!H28 -> 0.2
C104: Interest Rate | E104: =Dashboard!H29 -> 0.1
C106: Repayment period | D106: years | E106: =Dashboard!H30 -> 10 | F106: after construction period
C107: Financing fee | E107: 0.005
C109: Royalty
C110: Oil | D110: % | E110: =Dashboard!D28 -> 0.125 | F110: =IF(Dashboard!$D$13="Deepwater","for first 7 years and then 5%","") -> 
C111: Gas | D111: % | E111: =Dashboard!D29 -> 0.1 | F111: =IF(Dashboard!$D$13="Deepwater","for first 7 years and then 5%","") -> 
C112: Standard deductible amount | D112: INR per MT | E112: 0
C113: NCCD | D113: INR per MT | E113: 0
C114: Cess | D114: INR per MT | E114: 0
C116: Taxes
C117: Corporate tax | D117: % | E117: 0
C118: MAT | D118: % | E118: 0
C119: Dividend tax | D119: % | E119: 0
C120: Service Tax | D120: % | E120: 0
C121: Work Contract tax | D121: % | E121: 0
C122: Sales Tax | D122: % | E122: 0
C123: VAT | D123: % | E123: 0
C125: Depreciation | E125: Regular | F125: Additional
C126: Appraisal | E126: 1 | F126: 0
C127: Well development | E127: 1 | F127: 0
C128: Facilities | E128: 0.15 | F128: 0.2
C129: Pipline | E129: 0.6 | F129: 0.2
C131: Escalation
C132: Base Year | E132: 2016
C133: Capex | E133: 0.06
C134: Opex | E134: 0.08
C135: Rupee Depreciation | E135: 0
C136: Oil price | E136: 0
C137: Gas price | E137: 0
C139: Exchange Rate
C140: USD INR | E140: =Dashboard!D21 -> 67
C142: Government Share | D142: At LRP | E142: =Dashboard!D24 -> 0.2
D143: At HRP | E143: =Dashboard!D25 -> 0.5
D144: LRP (Rev per day) | E144: 0.01 | F144: USD Mn
D145: HRP (Rev per day) | E145: 1 | F145: USD Mn
C146: Hurdle Rate | E146: 0.1
C147: Cost of Equity | E147: 0.12
C149: Thousand | E149: 1000
C150: Lakh | E150: 100000
C151: Crore | E151: 10000000
C152: Million | E152: =10^6 -> 1000000
C153: Billion | E153: =10^9 -> 1000000000
C159: Field Type
C160: Onland
C161: Offshore
C162: Deepwater
C164: Field Regime
C165: Nomination
C166: Pre-NELP
C167: NELP
C169: Royalty Calculations (NELP)
C170: Oil | D170: Ex-Royalty basis
C171: Onland | D171: 0.125
C172: Offshore | D172: 0.075
C173: Deepwater | D173: 0 | E173: First 7 years
C174: Gas
C175: Onland | D175: 0.1
C176: Offshore | D176: 0.075
C177: Deepwater | D177: 0 | E177: First 7 years

Sheet Capex (hidden)
I1: Period No. | J1: =Timings!J1 -> 1 | K1: =Timings!K1 -> 2 | L1: =Timings!L1 -> 3 | M1: =Timings!M1 -> 4 | N1: =Timings!N1 -> 5 | O1: =Timings!O1 -> 6 | P1: =Timings!P1 -> 7 | Q1: =Timings!Q1 -> 8 | R1: =Timings!R1 -> 9 | S1: =Timings!S1 -> 10 | T1: =Timings!T1 -> 11 | U1: =Timings!U1 -> 12 | V1: =Timings!V1 -> 13 | W1: =Timings!W1 -> 14 | X1: =Timings!X1 -> 15 | Y1: =Timings!Y1 -> 16 | Z1: =Timings!Z1 -> 17 | AA1: =Timings!AA1 -> 0 | AB1: =Timings!AB1 -> 0 | AC1: =Timings!AC1 -> 0 | AD1: =Timings!AD1 -> 0 | AE1: =Timings!AE1 -> 0 | AF1: =Timings!AF1 -> 0 | AG1: =Timings!AG1 -> 0 | AH1: =Timings!AH1 -> 0 | AI1: =Timings!AI1 -> 0 | AJ1: =Timings!AJ1 -> 0 | AK1: =Timings!AK1 -> 0 | AL1: =Timings!AL1 -> 0 | AM1: =Timings!AM1 -> 0
C2: CAPEX | I2: Start Date | J2: =Timings!J2 -> 2019-04-01 | K2: =Timings!K2 -> 2020-04-01 | L2: =Timings!L2 -> 2021-04-01 | M2: =Timings!M2 -> 2022-04-01 | N2: =Timings!N2 -> 2023-04-01 | O2: =Timings!O2 -> 2024-04-01 | P2: =Timings!P2 -> 2025-04-01 | Q2: =Timings!Q2 -> 2026-04-01 | R2: =Timings!R2 -> 2027-04-01 | S2: =Timings!S2 -> 2028-04-01 | T2: =Timings!T2 -> 2029-04-01 | U2: =Timings!U2 -> 2030-04-01 | V2: =Timings!V2 -> 2031-04-01 | W2: =Timings!W2 -> 2032-04-01 | X2: =Timings!X2 -> 2033-04-01 | Y2: =Timings!Y2 -> 2034-04-01 | Z2: =Timings!Z2 -> 2035-04-01 | AA2: =Timings!AA2 -> 2036-04-01 | AB2: =Timings!AB2 -> 2037-04-01 | AC2: =Timings!AC2 -> 2038-04-01 | AD2: =Timings!AD2 -> 2039-04-01 | AE2: =Timings!AE2 -> 2040-04-01 | AF2: =Timings!AF2 -> 2041-04-01 | AG2: =Timings!AG2 -> 2042-04-01 | AH2: =Timings!AH2 -> 2043-04-01 | AI2: =Timings!AI2 -> 2044-04-01 | AJ2: =Timings!AJ2 -> 2045-04-01 | AK2: =Timings!AK2 -> 2046-04-01 | AL2: =Timings!AL2 -> 2047-04-01 | AM2: =Timings!AM2 -> 2048-04-01
I3: End Date | J3: =Timings!J3 -> 2020-03-31 | K3: =Timings!K3 -> 2021-03-31 | L3: =Timings!L3 -> 2022-03-31 | M3: =Timings!M3 -> 2023-03-31 | N3: =Timings!N3 -> 2024-03-31 | O3: =Timings!O3 -> 2025-03-31 | P3: =Timings!P3 -> 2026-03-31 | Q3: =Timings!Q3 -> 2027-03-31 | R3: =Timings!R3 -> 2028-03-31 | S3: =Timings!S3 -> 2029-03-31 | T3: =Timings!T3 -> 2030-03-31 | U3: =Timings!U3 -> 2031-03-31 | V3: =Timings!V3 -> 2032-03-31 | W3: =Timings!W3 -> 2033-03-31 | X3: =Timings!X3 -> 2034-03-31 | Y3: =Timings!Y3 -> 2035-03-31 | Z3: =Timings!Z3 -> 2036-03-31 | AA3: =Timings!AA3 -> 2037-03-31 | AB3: =Timings!AB3 -> 2038-03-31 | AC3: =Timings!AC3 -> 2039-03-31 | AD3: =Timings!AD3 -> 2040-03-31 | AE3: =Timings!AE3 -> 2041-03-31 | AF3: =Timings!AF3 -> 2042-03-31 | AG3: =Timings!AG3 -> 2043-03-31 | AH3: =Timings!AH3 -> 2044-03-31 | AI3: =Timings!AI3 -> 2045-03-31 | AJ3: =Timings!AJ3 -> 2046-03-31 | AK3: =Timings!AK3 -> 2047-03-31 | AL3: =Timings!AL3 -> 2048-03-31 | AM3: =Timings!AM3 -> 2049-03-31
I4: Year | J4: =Timings!J4 -> 2020 | K4: =Timings!K4 -> 2021 | L4: =Timings!L4 -> 2022 | M4: =Timings!M4 -> 2023 | N4: =Timings!N4 -> 2024 | O4: =Timings!O4 -> 2025 | P4: =Timings!P4 -> 2026 | Q4: =Timings!Q4 -> 2027 | R4: =Timings!R4 -> 2028 | S4: =Timings!S4 -> 2029 | T4: =Timings!T4 -> 2030 | U4: =Timings!U4 -> 2031 | V4: =Timings!V4 -> 2032 | W4: =Timings!W4 -> 2033 | X4: =Timings!X4 -> 2034 | Y4: =Timings!Y4 -> 2035 | Z4: =Timings!Z4 -> 2036 | AA4: =Timings!AA4 -> 2037 | AB4: =Timings!AB4 -> 2038 | AC4: =Timings!AC4 -> 2039 | AD4: =Timings!AD4 -> 2040 | AE4: =Timings!AE4 -> 2041 | AF4: =Timings!AF4 -> 2042 | AG4: =Timings!AG4 -> 2043 | AH4: =Timings!AH4 -> 2044 | AI4: =Timings!AI4 -> 2045 | AJ4: =Timings!AJ4 -> 2046 | AK4: =Timings!AK4 -> 2047 | AL4: =Timings!AL4 -> 2048 | AM4: =Timings!AM4 -> 2049
I5: Appraisal | J5: =Timings!J5 -> 1 | K5: =Timings!K5 -> 0 | L5: =Timings!L5 -> 0 | M5: =Timings!M5 -> 0 | N5: =Timings!N5 -> 0 | O5: =Timings!O5 -> 0 | P5: =Timings!P5 -> 0 | Q5: =Timings!Q5 -> 0 | R5: =Timings!R5 -> 0 | S5: =Timings!S5 -> 0 | T5: =Timings!T5 -> 0 | U5: =Timings!U5 -> 0 | V5: =Timings!V5 -> 0 | W5: =Timings!W5 -> 0 | X5: =Timings!X5 -> 0 | Y5: =Timings!Y5 -> 0 | Z5: =Timings!Z5 -> 0 | AA5: =Timings!AA5 -> 0 | AB5: =Timings!AB5 -> 0 | AC5: =Timings!AC5 -> 0 | AD5: =Timings!AD5 -> 0 | AE5: =Timings!AE5 -> 0 | AF5: =Timings!AF5 -> 0 | AG5: =Timings!AG5 -> 0 | AH5: =Timings!AH5 -> 0 | AI5: =Timings!AI5 -> 0 | AJ5: =Timings!AJ5 -> 0 | AK5: =Timings!AK5 -> 0 | AL5: =Timings!AL5 -> 0 | AM5: =Timings!AM5 -> 0
I6: Well Development | J6: =Timings!J6 -> 1 | K6: =Timings!K6 -> 1 | L6: =Timings!L6 -> 0 | M6: =Timings!M6 -> 0 | N6: =Timings!N6 -> 0 | O6: =Timings!O6 -> 0 | P6: =Timings!P6 -> 0 | Q6: =Timings!Q6 -> 0 | R6: =Timings!R6 -> 0 | S6: =Timings!S6 -> 0 | T6: =Timings!T6 -> 0 | U6: =Timings!U6 -> 0 | V6: =Timings!V6 -> 0 | W6: =Timings!W6 -> 0 | X6: =Timings!X6 -> 0 | Y6: =Timings!Y6 -> 0 | Z6: =Timings!Z6 -> 0 | AA6: =Timings!AA6 -> 0 | AB6: =Timings!AB6 -> 0 | AC6: =Timings!AC6 -> 0 | AD6: =Timings!AD6 -> 0 | AE6: =Timings!AE6 -> 0 | AF6: =Timings!AF6 -> 0 | AG6: =Timings!AG6 -> 0 | AH6: =Timings!AH6 -> 0 | AI6: =Timings!AI6 -> 0 | AJ6: =Timings!AJ6 -> 0 | AK6: =Timings!AK6 -> 0 | AL6: =Timings!AL6 -> 0 | AM6: =Timings!AM6 -> 0
I7: Facilities | J7: =Timings!J7 -> 1 | K7: =Timings!K7 -> 1 | L7: =Timings!L7 -> 0 | M7: =Timings!M7 -> 0 | N7: =Timings!N7 -> 0 | O7: =Timings!O7 -> 0 | P7: =Timings!P7 -> 0 | Q7: =Timings!Q7 -> 0 | R7: =Timings!R7 -> 0 | S7: =Timings!S7 -> 0 | T7: =Timings!T7 -> 0 | U7: =Timings!U7 -> 0 | V7: =Timings!V7 -> 0 | W7: =Timings!W7 -> 0 | X7: =Timings!X7 -> 0 | Y7: =Timings!Y7 -> 0 | Z7: =Timings!Z7 -> 0 | AA7: =Timings!AA7 -> 0 | AB7: =Timings!AB7 -> 0 | AC7: =Timings!AC7 -> 0 | AD7: =Timings!AD7 -> 0 | AE7: =Timings!AE7 -> 0 | AF7: =Timings!AF7 -> 0 | AG7: =Timings!AG7 -> 0 | AH7: =Timings!AH7 -> 0 | AI7: =Timings!AI7 -> 0 | AJ7: =Timings!AJ7 -> 0 | AK7: =Timings!AK7 -> 0 | AL7: =Timings!AL7 -> 0 | AM7: =Timings!AM7 -> 0
I8: Operations | J8: =Timings!J8 -> 0 | K8: =Timings!K8 -> 1 | L8: =Timings!L8 -> 1 | M8: =Timings!M8 -> 1 | N8: =Timings!N8 -> 1 | O8: =Timings!O8 -> 1 | P8: =Timings!P8 -> 1 | Q8: =Timings!Q8 -> 1 | R8: =Timings!R8 -> 1 | S8: =Timings!S8 -> 1 | T8: =Timings!T8 -> 1 | U8: =Timings!U8 -> 1 | V8: =Timings!V8 -> 1 | W8: =Timings!W8 -> 0 | X8: =Timings!X8 -> 0 | Y8: =Timings!Y8 -> 0 | Z8: =Timings!Z8 -> 0 | AA8: =Timings!AA8 -> 0 | AB8: =Timings!AB8 -> 0 | AC8: =Timings!AC8 -> 0 | AD8: =Timings!AD8 -> 0 | AE8: =Timings!AE8 -> 0 | AF8: =Timings!AF8 -> 0 | AG8: =Timings!AG8 -> 0 | AH8: =Timings!AH8 -> 0 | AI8: =Timings!AI8 -> 0 | AJ8: =Timings!AJ8 -> 0 | AK8: =Timings!AK8 -> 0 | AL8: =Timings!AL8 -> 0 | AM8: =Timings!AM8 -> 0
C10: Capex
C11: =Inputs!C83 -> Appraisal Cost | E11: =IFERROR(G11/$G$16,) -> 0.04226542688 | G11: =SUM(J11:AM11) -> 0.265 | H11: USD Mn | J11: =IFERROR(Inputs!J83*(1+Inputs!$E$133)^J1,0) -> 0.265 | K11: =IFERROR(Inputs!K83*(1+Inputs!$E$133)^K1,0) -> 0 | L11: =IFERROR(Inputs!L83*(1+Inputs!$E$133)^L1,0) -> 0 | M11: =IFERROR(Inputs!M83*(1+Inputs!$E$133)^M1,0) -> 0 | N11: =IFERROR(Inputs!N83*(1+Inputs!$E$133)^N1,0) -> 0 | O11: =IFERROR(Inputs!O83*(1+Inputs!$E$133)^O1,0) -> 0 | P11: =IFERROR(Inputs!P83*(1+Inputs!$E$133)^P1,0) -> 0 | Q11: =IFERROR(Inputs!Q83*(1+Inputs!$E$133)^Q1,0) -> 0 | R11: =IFERROR(Inputs!R83*(1+Inputs!$E$133)^R1,0) -> 0 | S11: =IFERROR(Inputs!S83*(1+Inputs!$E$133)^S1,0) -> 0 | T11: =IFERROR(Inputs!T83*(1+Inputs!$E$133)^T1,0) -> 0 | U11: =IFERROR(Inputs!U83*(1+Inputs!$E$133)^U1,0) -> 0 | V11: =IFERROR(Inputs!V83*(1+Inputs!$E$133)^V1,0) -> 0 | W11: =IFERROR(Inputs!W83*(1+Inputs!$E$133)^W1,0) -> 0 | X11: =IFERROR(Inputs!X83*(1+Inputs!$E$133)^X1,0) -> 0 | Y11: =IFERROR(Inputs!Y83*(1+Inputs!$E$133)^Y1,0) -> 0 | Z11: =IFERROR(Inputs!Z83*(1+Inputs!$E$133)^Z1,0) -> 0 | AA11: =IFERROR(Inputs!AA83*(1+Inputs!$E$133)^AA1,0) -> 0 | AB11: =IFERROR(Inputs!AB83*(1+Inputs!$E$133)^AB1,0) -> 0 | AC11: =IFERROR(Inputs!AC83*(1+Inputs!$E$133)^AC1,0) -> 0 | AD11: =IFERROR(Inputs!AD83*(1+Inputs!$E$133)^AD1,0) -> 0 | AE11: =IFERROR(Inputs!AE83*(1+Inputs!$E$133)^AE1,0) -> 0 | AF11: =IFERROR(Inputs!AF83*(1+Inputs!$E$133)^AF1,0) -> 0 | AG11: =IFERROR(Inputs!AG83*(1+Inputs!$E$133)^AG1,0) -> 0 | AH11: =IFERROR(Inputs!AH83*(1+Inputs!$E$133)^AH1,0) -> 0 | AI11: =IFERROR(Inputs!AI83*(1+Inputs!$E$133)^AI1,0) -> 0 | AJ11: =IFERROR(Inputs!AJ83*(1+Inputs!$E$133)^AJ1,0) -> 0 | AK11: =IFERROR(Inputs!AK83*(1+Inputs!$E$133)^AK1,0) -> 0 | AL11: =IFERROR(Inputs!AL83*(1+Inputs!$E$133)^AL1,0) -> 0 | AM11: =IFERROR(Inputs!AM83*(1+Inputs!$E$133)^AM1,0) -> 0
C12: =Inputs!C84 -> Well development cost | E12: =IFERROR(G12/$G$16,) -> 0.8706677937 | G12: =SUM(J12:AM12) -> 5.459 | H12: USD Mn | J12: =IFERROR(Inputs!J84*(1+Inputs!$E$133)^J1,0) -> 2.65 | K12: =IFERROR(Inputs!K84*(1+Inputs!$E$133)^K1,0) -> 2.809 | L12: =IFERROR(Inputs!L84*(1+Inputs!$E$133)^L1,0) -> 0 | M12: =IFERROR(Inputs!M84*(1+Inputs!$E$133)^M1,0) -> 0 | N12: =IFERROR(Inputs!N84*(1+Inputs!$E$133)^N1,0) -> 0 | O12: =IFERROR(Inputs!O84*(1+Inputs!$E$133)^O1,0) -> 0 | P12: =IFERROR(Inputs!P84*(1+Inputs!$E$133)^P1,0) -> 0 | Q12: =IFERROR(Inputs!Q84*(1+Inputs!$E$133)^Q1,0) -> 0 | R12: =IFERROR(Inputs!R84*(1+Inputs!$E$133)^R1,0) -> 0 | S12: =IFERROR(Inputs!S84*(1+Inputs!$E$133)^S1,0) -> 0 | T12: =IFERROR(Inputs!T84*(1+Inputs!$E$133)^T1,0) -> 0 | U12: =IFERROR(Inputs!U84*(1+Inputs!$E$133)^U1,0) -> 0 | V12: =IFERROR(Inputs!V84*(1+Inputs!$E$133)^V1,0) -> 0 | W12: =IFERROR(Inputs!W84*(1+Inputs!$E$133)^W1,0) -> 0 | X12: =IFERROR(Inputs!X84*(1+Inputs!$E$133)^X1,0) -> 0 | Y12: =IFERROR(Inputs!Y84*(1+Inputs!$E$133)^Y1,0) -> 0 | Z12: =IFERROR(Inputs!Z84*(1+Inputs!$E$133)^Z1,0) -> 0 | AA12: =IFERROR(Inputs!AA84*(1+Inputs!$E$133)^AA1,0) -> 0 | AB12: =IFERROR(Inputs!AB84*(1+Inputs!$E$133)^AB1,0) -> 0 | AC12: =IFERROR(Inputs!AC84*(1+Inputs!$E$133)^AC1,0) -> 0 | AD12: =IFERROR(Inputs!AD84*(1+Inputs!$E$133)^AD1,0) -> 0 | AE12: =IFERROR(Inputs!AE84*(1+Inputs!$E$133)^AE1,0) -> 0 | AF12: =IFERROR(Inputs!AF84*(1+Inputs!$E$133)^AF1,0) -> 0 | AG12: =IFERROR(Inputs!AG84*(1+Inputs!$E$133)^AG1,0) -> 0 | AH12: =IFERROR(Inputs!AH84*(1+Inputs!$E$133)^AH1,0) -> 0 | AI12: =IFERROR(Inputs!AI84*(1+Inputs!$E$133)^AI1,0) -> 0 | AJ12: =IFERROR(Inputs!AJ84*(1+Inputs!$E$133)^AJ1,0) -> 0 | AK12: =IFERROR(Inputs!AK84*(1+Inputs!$E$133)^AK1,0) -> 0 | AL12: =IFERROR(Inputs!AL84*(1+Inputs!$E$133)^AL1,0) -> 0 | AM12: =IFERROR(Inputs!AM84*(1+Inputs!$E$133)^AM1,0) -> 0
C13: =Inputs!C85 -> Surface facilities | E13: 0.08706677937 | G13: 0.5459 | H13: USD Mn | J13: =IFERROR(Inputs!J85*(1+Inputs!$E$133)^J1,0) -> 0.265 | K13: =IFERROR(Inputs!K85*(1+Inputs!$E$133)^K1,0) -> 0.2809 | L13: =IFERROR(Inputs!L85*(1+Inputs!$E$133)^L1,0) -> 0 | M13: =IFERROR(Inputs!M85*(1+Inputs!$E$133)^M1,0) -> 0 | N13: =IFERROR(Inputs!N85*(1+Inputs!$E$133)^N1,0) -> 0 | O13: =IFERROR(Inputs!O85*(1+Inputs!$E$133)^O1,0) -> 0 | P13: =IFERROR(Inputs!P85*(1+Inputs!$E$133)^P1,0) -> 0 | Q13: =IFERROR(Inputs!Q85*(1+Inputs!$E$133)^Q1,0) -> 0 | R13: =IFERROR(Inputs!R85*(1+Inputs!$E$133)^R1,0) -> 0 | S13: =IFERROR(Inputs!S85*(1+Inputs!$E$133)^S1,0) -> 0 | T13: =IFERROR(Inputs!T85*(1+Inputs!$E$133)^T1,0) -> 0 | U13: =IFERROR(Inputs!U85*(1+Inputs!$E$133)^U1,0) -> 0 | V13: =IFERROR(Inputs!V85*(1+Inputs!$E$133)^V1,0) -> 0 | W13: =IFERROR(Inputs!W85*(1+Inputs!$E$133)^W1,0) -> 0 | X13: =IFERROR(Inputs!X85*(1+Inputs!$E$133)^X1,0) -> 0 | Y13: =IFERROR(Inputs!Y85*(1+Inputs!$E$133)^Y1,0) -> 0 | Z13: =IFERROR(Inputs!Z85*(1+Inputs!$E$133)^Z1,0) -> 0 | AA13: =IFERROR(Inputs!AA85*(1+Inputs!$E$133)^AA1,0) -> 0 | AB13: =IFERROR(Inputs!AB85*(1+Inputs!$E$133)^AB1,0) -> 0 | AC13: =IFERROR(Inputs!AC85*(1+Inputs!$E$133)^AC1,0) -> 0 | AD13: =IFERROR(Inputs!AD85*(1+Inputs!$E$133)^AD1,0) -> 0 | AE13: =IFERROR(Inputs!AE85*(1+Inputs!$E$133)^AE1,0) -> 0 | AF13: =IFERROR(Inputs!AF85*(1+Inputs!$E$133)^AF1,0) -> 0 | AG13: =IFERROR(Inputs!AG85*(1+Inputs!$E$133)^AG1,0) -> 0 | AH13: =IFERROR(Inputs!AH85*(1+Inputs!$E$133)^AH1,0) -> 0 | AI13: =IFERROR(Inputs!AI85*(1+Inputs!$E$133)^AI1,0) -> 0 | AJ13: =IFERROR(Inputs!AJ85*(1+Inputs!$E$133)^AJ1,0) -> 0 | AK13: =IFERROR(Inputs!AK85*(1+Inputs!$E$133)^AK1,0) -> 0 | AL13: =IFERROR(Inputs!AL85*(1+Inputs!$E$133)^AL1,0) -> 0 | AM13: =IFERROR(Inputs!AM85*(1+Inputs!$E$133)^AM1,0) -> 0
C14: =Inputs!C86 -> Evacuation infrastructure cost (pipeline etc.) | E14: 0 | G14: 0 | H14: USD Mn | J14: =IFERROR(Inputs!J86*(1+Inputs!$E$133)^J1,0) -> 0 | K14: =IFERROR(Inputs!K86*(1+Inputs!$E$133)^K1,0) -> 0 | L14: =IFERROR(Inputs!L86*(1+Inputs!$E$133)^L1,0) -> 0 | M14: =IFERROR(Inputs!M86*(1+Inputs!$E$133)^M1,0) -> 0 | N14: =IFERROR(Inputs!N86*(1+Inputs!$E$133)^N1,0) -> 0 | O14: =IFERROR(Inputs!O86*(1+Inputs!$E$133)^O1,0) -> 0 | P14: =IFERROR(Inputs!P86*(1+Inputs!$E$133)^P1,0) -> 0 | Q14: =IFERROR(Inputs!Q86*(1+Inputs!$E$133)^Q1,0) -> 0 | R14: =IFERROR(Inputs!R86*(1+Inputs!$E$133)^R1,0) -> 0 | S14: =IFERROR(Inputs!S86*(1+Inputs!$E$133)^S1,0) -> 0 | T14: =IFERROR(Inputs!T86*(1+Inputs!$E$133)^T1,0) -> 0 | U14: =IFERROR(Inputs!U86*(1+Inputs!$E$133)^U1,0) -> 0 | V14: =IFERROR(Inputs!V86*(1+Inputs!$E$133)^V1,0) -> 0 | W14: =IFERROR(Inputs!W86*(1+Inputs!$E$133)^W1,0) -> 0 | X14: =IFERROR(Inputs!X86*(1+Inputs!$E$133)^X1,0) -> 0 | Y14: =IFERROR(Inputs!Y86*(1+Inputs!$E$133)^Y1,0) -> 0 | Z14: =IFERROR(Inputs!Z86*(1+Inputs!$E$133)^Z1,0) -> 0 | AA14: =IFERROR(Inputs!AA86*(1+Inputs!$E$133)^AA1,0) -> 0 | AB14: =IFERROR(Inputs!AB86*(1+Inputs!$E$133)^AB1,0) -> 0 | AC14: =IFERROR(Inputs!AC86*(1+Inputs!$E$133)^AC1,0) -> 0 | AD14: =IFERROR(Inputs!AD86*(1+Inputs!$E$133)^AD1,0) -> 0 | AE14: =IFERROR(Inputs!AE86*(1+Inputs!$E$133)^AE1,0) -> 0 | AF14: =IFERROR(Inputs!AF86*(1+Inputs!$E$133)^AF1,0) -> 0 | AG14: =IFERROR(Inputs!AG86*(1+Inputs!$E$133)^AG1,0) -> 0 | AH14: =IFERROR(Inputs!AH86*(1+Inputs!$E$133)^AH1,0) -> 0 | AI14: =IFERROR(Inputs!AI86*(1+Inputs!$E$133)^AI1,0) -> 0 | AJ14: =IFERROR(Inputs!AJ86*(1+Inputs!$E$133)^AJ1,0) -> 0 | AK14: =IFERROR(Inputs!AK86*(1+Inputs!$E$133)^AK1,0) -> 0 | AL14: =IFERROR(Inputs!AL86*(1+Inputs!$E$133)^AL1,0) -> 0 | AM14: =IFERROR(Inputs!AM86*(1+Inputs!$E$133)^AM1,0) -> 0
C15: =Inputs!C87 -> Any other additional cost | E15: 0 | G15: 0 | H15: USD Mn | J15: =IFERROR(Inputs!J87*(1+Inputs!$E$133)^J1,0) -> 0 | K15: =IFERROR(Inputs!K87*(1+Inputs!$E$133)^K1,0) -> 0 | L15: =IFERROR(Inputs!L87*(1+Inputs!$E$133)^L1,0) -> 0 | M15: =IFERROR(Inputs!M87*(1+Inputs!$E$133)^M1,0) -> 0 | N15: =IFERROR(Inputs!N87*(1+Inputs!$E$133)^N1,0) -> 0 | O15: =IFERROR(Inputs!O87*(1+Inputs!$E$133)^O1,0) -> 0 | P15: =IFERROR(Inputs!P87*(1+Inputs!$E$133)^P1,0) -> 0 | Q15: =IFERROR(Inputs!Q87*(1+Inputs!$E$133)^Q1,0) -> 0 | R15: =IFERROR(Inputs!R87*(1+Inputs!$E$133)^R1,0) -> 0 | S15: =IFERROR(Inputs!S87*(1+Inputs!$E$133)^S1,0) -> 0 | T15: =IFERROR(Inputs!T87*(1+Inputs!$E$133)^T1,0) -> 0 | U15: =IFERROR(Inputs!U87*(1+Inputs!$E$133)^U1,0) -> 0 | V15: =IFERROR(Inputs!V87*(1+Inputs!$E$133)^V1,0) -> 0 | W15: =IFERROR(Inputs!W87*(1+Inputs!$E$133)^W1,0) -> 0 | X15: =IFERROR(Inputs!X87*(1+Inputs!$E$133)^X1,0) -> 0 | Y15: =IFERROR(Inputs!Y87*(1+Inputs!$E$133)^Y1,0) -> 0 | Z15: =IFERROR(Inputs!Z87*(1+Inputs!$E$133)^Z1,0) -> 0 | AA15: =IFERROR(Inputs!AA87*(1+Inputs!$E$133)^AA1,0) -> 0 | AB15: =IFERROR(Inputs!AB87*(1+Inputs!$E$133)^AB1,0) -> 0 | AC15: =IFERROR(Inputs!AC87*(1+Inputs!$E$133)^AC1,0) -> 0 | AD15: =IFERROR(Inputs!AD87*(1+Inputs!$E$133)^AD1,0) -> 0 | AE15: =IFERROR(Inputs!AE87*(1+Inputs!$E$133)^AE1,0) -> 0 | AF15: =IFERROR(Inputs!AF87*(1+Inputs!$E$133)^AF1,0) -> 0 | AG15: =IFERROR(Inputs!AG87*(1+Inputs!$E$133)^AG1,0) -> 0 | AH15: =IFERROR(Inputs!AH87*(1+Inputs!$E$133)^AH1,0) -> 0 | AI15: =IFERROR(Inputs!AI87*(1+Inputs!$E$133)^AI1,0) -> 0 | AJ15: =IFERROR(Inputs!AJ87*(1+Inputs!$E$133)^AJ1,0) -> 0 | AK15: =IFERROR(Inputs!AK87*(1+Inputs!$E$133)^AK1,0) -> 0 | AL15: =IFERROR(Inputs!AL87*(1+Inputs!$E$133)^AL1,0) -> 0 | AM15: =IFERROR(Inputs!AM87*(1+Inputs!$E$133)^AM1,0) -> 0
C16: Total | G16: =SUM(G11:G15) -> 6.2699 | H16: USD Mn | J16: =SUM(J11:J15) -> 3.18 | K16: =SUM(K11:K15) -> 3.0899 | L16: 0 | M16: 0 | N16: 0 | O16: 0 | P16: 0 | Q16: 0 | R16: 0 | S16: 0 | T16: 0 | U16: 0 | V16: 0 | W16: 0 | X16: 0 | Y16: 0 | Z16: 0 | AA16: 0 | AB16: 0 | AC16: 0 | AD16: 0 | AE16: 0 | AF16: 0 | AG16: 0 | AH16: 0 | AI16: 0 | AJ16: 0 | AK16: 0 | AL16: 0 | AM16: 0
C18: Abandonment Cost
C19: Abandonment Cost | G19: =SUM(J19:AM19) -> 0 | H19: USD Mn | J19: =Inputs!J88 -> 0 | K19: =Inputs!K88 -> 0 | L19: =Inputs!L88 -> 0 | M19: =Inputs!M88 -> 0 | N19: =Inputs!N88 -> 0 | O19: =Inputs!O88 -> 0 | P19: =Inputs!P88 -> 0 | Q19: =Inputs!Q88 -> 0 | R19: =Inputs!R88 -> 0 | S19: =Inputs!S88 -> 0 | T19: =Inputs!T88 -> 0 | U19: =Inputs!U88 -> 0 | V19: =Inputs!V88 -> 0 | W19: =Inputs!W88 -> 0 | X19: =Inputs!X88 -> 0 | Y19: =Inputs!Y88 -> 0 | Z19: =Inputs!Z88 -> 0 | AA19: =Inputs!AA88 -> 0 | AB19: =Inputs!AB88 -> 0 | AC19: =Inputs!AC88 -> 0 | AD19: =Inputs!AD88 -> 0 | AE19: =Inputs!AE88 -> 0 | AF19: =Inputs!AF88 -> 0 | AG19: =Inputs!AG88 -> 0 | AH19: =Inputs!AH88 -> 0 | AI19: =Inputs!AI88 -> 0 | AJ19: =Inputs!AJ88 -> 0 | AK19: =Inputs!AK88 -> 0 | AL19: =Inputs!AL88 -> 0 | AM19: =Inputs!AM88 -> 0
C21: One time Upfront Payment
C22: One time Upfront Payment | G22: =SUM(J22:AM22) -> 0 | H22: USD Mn | J22: =Inputs!J91 -> 0 | K22: =Inputs!K91 -> 0 | L22: =Inputs!L91 -> 0 | M22: =Inputs!M91 -> 0 | N22: =Inputs!N91 -> 0 | O22: =Inputs!O91 -> 0 | P22: =Inputs!P91 -> 0 | Q22: =Inputs!Q91 -> 0 | R22: =Inputs!R91 -> 0 | S22: =Inputs!S91 -> 0 | T22: =Inputs!T91 -> 0 | U22: =Inputs!U91 -> 0 | V22: =Inputs!V91 -> 0 | W22: =Inputs!W91 -> 0 | X22: =Inputs!X91 -> 0 | Y22: =Inputs!Y91 -> 0 | Z22: =Inputs!Z91 -> 0 | AA22: =Inputs!AA91 -> 0 | AB22: =Inputs!AB91 -> 0 | AC22: =Inputs!AC91 -> 0 | AD22: =Inputs!AD91 -> 0 | AE22: =Inputs!AE91 -> 0 | AF22: =Inputs!AF91 -> 0 | AG22: =Inputs!AG91 -> 0 | AH22: =Inputs!AH91 -> 0 | AI22: =Inputs!AI91 -> 0 | AJ22: =Inputs!AJ91 -> 0 | AK22: =Inputs!AK91 -> 0 | AL22: =Inputs!AL91 -> 0 | AM22: =Inputs!AM91 -> 0

Sheet Profile (hidden)
J1: Period No. | K1: =Timings!J1 -> 1 | L1: =Timings!K1 -> 2 | M1: =Timings!L1 -> 3 | N1: =Timings!M1 -> 4 | O1: =Timings!N1 -> 5 | P1: =Timings!O1 -> 6 | Q1: =Timings!P1 -> 7 | R1: =Timings!Q1 -> 8 | S1: =Timings!R1 -> 9 | T1: =Timings!S1 -> 10 | U1: =Timings!T1 -> 11 | V1: =Timings!U1 -> 12 | W1: =Timings!V1 -> 13 | X1: =Timings!W1 -> 14 | Y1: =Timings!X1 -> 15 | Z1: =Timings!Y1 -> 16 | AA1: =Timings!Z1 -> 17 | AB1: =Timings!AA1 -> 0 | AC1: =Timings!AB1 -> 0 | AD1: =Timings!AC1 -> 0 | AE1: =Timings!AD1 -> 0 | AF1: =Timings!AE1 -> 0 | AG1: =Timings!AF1 -> 0 | AH1: =Timings!AG1 -> 0 | AI1: =Timings!AH1 -> 0 | AJ1: =Timings!AI1 -> 0 | AK1: =Timings!AJ1 -> 0 | AL1: =Timings!AK1 -> 0 | AM1: =Timings!AL1 -> 0 | AN1: =Timings!AM1 -> 0
B2: Input/ Assumptions | J2: Start Date | K2: =Timings!J2 -> 2019-04-01 | L2: =Timings!K2 -> 2020-04-01 | M2: =Timings!L2 -> 2021-04-01 | N2: =Timings!M2 -> 2022-04-01 | O2: =Timings!N2 -> 2023-04-01 | P2: =Timings!O2 -> 2024-04-01 | Q2: =Timings!P2 -> 2025-04-01 | R2: =Timings!Q2 -> 2026-04-01 | S2: =Timings!R2 -> 2027-04-01 | T2: =Timings!S2 -> 2028-04-01 | U2: =Timings!T2 -> 2029-04-01 | V2: =Timings!U2 -> 2030-04-01 | W2: =Timings!V2 -> 2031-04-01 | X2: =Timings!W2 -> 2032-04-01 | Y2: =Timings!X2 -> 2033-04-01 | Z2: =Timings!Y2 -> 2034-04-01 | AA2: =Timings!Z2 -> 2035-04-01 | AB2: =Timings!AA2 -> 2036-04-01 | AC2: =Timings!AB2 -> 2037-04-01 | AD2: =Timings!AC2 -> 2038-04-01 | AE2: =Timings!AD2 -> 2039-04-01 | AF2: =Timings!AE2 -> 2040-04-01 | AG2: =Timings!AF2 -> 2041-04-01 | AH2: =Timings!AG2 -> 2042-04-01 | AI2: =Timings!AH2 -> 2043-04-01 | AJ2: =Timings!AI2 -> 2044-04-01 | AK2: =Timings!AJ2 -> 2045-04-01 | AL2: =Timings!AK2 -> 2046-04-01 | AM2: =Timings!AL2 -> 2047-04-01 | AN2: =Timings!AM2 -> 2048-04-01
J3: End Date | K3: =Timings!J3 -> 2020-03-31 | L3: =Timings!K3 -> 2021-03-31 | M3: =Timings!L3 -> 2022-03-31 | N3: =Timings!M3 -> 2023-03-31 | O3: =Timings!N3 -> 2024-03-31 | P3: =Timings!O3 -> 2025-03-31 | Q3: =Timings!P3 -> 2026-03-31 | R3: =Timings!Q3 -> 2027-03-31 | S3: =Timings!R3 -> 2028-03-31 | T3: =Timings!S3 -> 2029-03-31 | U3: =Timings!T3 -> 2030-03-31 | V3: =Timings!U3 -> 2031-03-31 | W3: =Timings!V3 -> 2032-03-31 | X3: =Timings!W3 -> 2033-03-31 | Y3: =Timings!X3 -> 2034-03-31 | Z3: =Timings!Y3 -> 2035-03-31 | AA3: =Timings!Z3 -> 2036-03-31 | AB3: =Timings!AA3 -> 2037-03-31 | AC3: =Timings!AB3 -> 2038-03-31 | AD3: =Timings!AC3 -> 2039-03-31 | AE3: =Timings!AD3 -> 2040-03-31 | AF3: =Timings!AE3 -> 2041-03-31 | AG3: =Timings!AF3 -> 2042-03-31 | AH3: =Timings!AG3 -> 2043-03-31 | AI3: =Timings!AH3 -> 2044-03-31 | AJ3: =Timings!AI3 -> 2045-03-31 | AK3: =Timings!AJ3 -> 2046-03-31 | AL3: =Timings!AK3 -> 2047-03-31 | AM3: =Timings!AL3 -> 2048-03-31 | AN3: =Timings!AM3 -> 2049-03-31
J4: Year | K4: =Timings!J4 -> 2020 | L4: =Timings!K4 -> 2021 | M4: =Timings!L4 -> 2022 | N4: =Timings!M4 -> 2023 | O4: =Timings!N4 -> 2024 | P4: =Timings!O4 -> 2025 | Q4: =Timings!P4 -> 2026 | R4: =Timings!Q4 -> 2027 | S4: =Timings!R4 -> 2028 | T4: =Timings!S4 -> 2029 | U4: =Timings!T4 -> 2030 | V4: =Timings!U4 -> 2031 | W4: =Timings!V4 -> 2032 | X4: =Timings!W4 -> 2033 | Y4: =Timings!X4 -> 2034 | Z4: =Timings!Y4 -> 2035 | AA4: =Timings!Z4 -> 2036 | AB4: =Timings!AA4 -> 2037 | AC4: =Timings!AB4 -> 2038 | AD4: =Timings!AC4 -> 2039 | AE4: =Timings!AD4 -> 2040 | AF4: =Timings!AE4 -> 2041 | AG4: =Timings!AF4 -> 2042 | AH4: =Timings!AG4 -> 2043 | AI4: =Timings!AH4 -> 2044 | AJ4: =Timings!AI4 -> 2045 | AK4: =Timings!AJ4 -> 2046 | AL4: =Timings!AK4 -> 2047 | AM4: =Timings!AL4 -> 2048 | AN4: =Timings!AM4 -> 2049
J5: Appraisal | K5: =Timings!J5 -> 1 | L5: =Timings!K5 -> 0 | M5: =Timings!L5 -> 0 | N5: =Timings!M5 -> 0 | O5: =Timings!N5 -> 0 | P5: =Timings!O5 -> 0 | Q5: =Timings!P5 -> 0 | R5: =Timings!Q5 -> 0 | S5: =Timings!R5 -> 0 | T5: =Timings!S5 -> 0 | U5: =Timings!T5 -> 0 | V5: =Timings!U5 -> 0 | W5: =Timings!V5 -> 0 | X5: =Timings!W5 -> 0 | Y5: =Timings!X5 -> 0 | Z5: =Timings!Y5 -> 0 | AA5: =Timings!Z5 -> 0 | AB5: =Timings!AA5 -> 0 | AC5: =Timings!AB5 -> 0 | AD5: =Timings!AC5 -> 0 | AE5: =Timings!AD5 -> 0 | AF5: =Timings!AE5 -> 0 | AG5: =Timings!AF5 -> 0 | AH5: =Timings!AG5 -> 0 | AI5: =Timings!AH5 -> 0 | AJ5: =Timings!AI5 -> 0 | AK5: =Timings!AJ5 -> 0 | AL5: =Timings!AK5 -> 0 | AM5: =Timings!AL5 -> 0 | AN5: =Timings!AM5 -> 0
J6: Well Development | K6: =Timings!J6 -> 1 | L6: =Timings!K6 -> 1 | M6: =Timings!L6 -> 0 | N6: =Timings!M6 -> 0 | O6: =Timings!N6 -> 0 | P6: =Timings!O6 -> 0 | Q6: =Timings!P6 -> 0 | R6: =Timings!Q6 -> 0 | S6: =Timings!R6 -> 0 | T6: =Timings!S6 -> 0 | U6: =Timings!T6 -> 0 | V6: =Timings!U6 -> 0 | W6: =Timings!V6 -> 0 | X6: =Timings!W6 -> 0 | Y6: =Timings!X6 -> 0 | Z6: =Timings!Y6 -> 0 | AA6: =Timings!Z6 -> 0 | AB6: =Timings!AA6 -> 0 | AC6: =Timings!AB6 -> 0 | AD6: =Timings!AC6 -> 0 | AE6: =Timings!AD6 -> 0 | AF6: =Timings!AE6 -> 0 | AG6: =Timings!AF6 -> 0 | AH6: =Timings!AG6 -> 0 | AI6: =Timings!AH6 -> 0 | AJ6: =Timings!AI6 -> 0 | AK6: =Timings!AJ6 -> 0 | AL6: =Timings!AK6 -> 0 | AM6: =Timings!AL6 -> 0 | AN6: =Timings!AM6 -> 0
J7: Facilities | K7: =Timings!J7 -> 1 | L7: =Timings!K7 -> 1 | M7: =Timings!L7 -> 0 | N7: =Timings!M7 -> 0 | O7: =Timings!N7 -> 0 | P7: =Timings!O7 -> 0 | Q7: =Timings!P7 -> 0 | R7: =Timings!Q7 -> 0 | S7: =Timings!R7 -> 0 | T7: =Timings!S7 -> 0 | U7: =Timings!T7 -> 0 | V7: =Timings!U7 -> 0 | W7: =Timings!V7 -> 0 | X7: =Timings!W7 -> 0 | Y7: =Timings!X7 -> 0 | Z7: =Timings!Y7 -> 0 | AA7: =Timings!Z7 -> 0 | AB7: =Timings!AA7 -> 0 | AC7: =Timings!AB7 -> 0 | AD7: =Timings!AC7 -> 0 | AE7: =Timings!AD7 -> 0 | AF7: =Timings!AE7 -> 0 | AG7: =Timings!AF7 -> 0 | AH7: =Timings!AG7 -> 0 | AI7: =Timings!AH7 -> 0 | AJ7: =Timings!AI7 -> 0 | AK7: =Timings!AJ7 -> 0 | AL7: =Timings!AK7 -> 0 | AM7: =Timings!AL7 -> 0 | AN7: =Timings!AM7 -> 0
J8: Operations | K8: =Timings!J8 -> 0 | L8: =Timings!K8 -> 1 | M8: =Timings!L8 -> 1 | N8: =Timings!M8 -> 1 | O8: =Timings!N8 -> 1 | P8: =Timings!O8 -> 1 | Q8: =Timings!P8 -> 1 | R8: =Timings!Q8 -> 1 | S8: =Timings!R8 -> 1 | T8: =Timings!S8 -> 1 | U8: =Timings!T8 -> 1 | V8: =Timings!U8 -> 1 | W8: =Timings!V8 -> 1 | X8: =Timings!W8 -> 0 | Y8: =Timings!X8 -> 0 | Z8: =Timings!Y8 -> 0 | AA8: =Timings!Z8 -> 0 | AB8: =Timings!AA8 -> 0 | AC8: =Timings!AB8 -> 0 | AD8: =Timings!AC8 -> 0 | AE8: =Timings!AD8 -> 0 | AF8: =Timings!AE8 -> 0 | AG8: =Timings!AF8 -> 0 | AH8: =Timings!AG8 -> 0 | AI8: =Timings!AH8 -> 0 | AJ8: =Timings!AI8 -> 0 | AK8: =Timings!AJ8 -> 0 | AL8: =Timings!AK8 -> 0 | AM8: =Timings!AL8 -> 0 | AN8: =Timings!AM8 -> 0
J9: Production Year | K9: =SUM($K$8:K8)*K8 -> 0 | L9: =SUM($K$8:L8)*L8 -> 1 | M9: =SUM($K$8:M8)*M8 -> 2 | N9: =SUM($K$8:N8)*N8 -> 3 | O9: =SUM($K$8:O8)*O8 -> 4 | P9: =SUM($K$8:P8)*P8 -> 5 | Q9: =SUM($K$8:Q8)*Q8 -> 6 | R9: =SUM($K$8:R8)*R8 -> 7 | S9: =SUM($K$8:S8)*S8 -> 8 | T9: =SUM($K$8:T8)*T8 -> 9 | U9: =SUM($K$8:U8)*U8 -> 10 | V9: =SUM($K$8:V8)*V8 -> 11 | W9: =SUM($K$8:W8)*W8 -> 12 | X9: =SUM($K$8:X8)*X8 -> 0 | Y9: =SUM($K$8:Y8)*Y8 -> 0 | Z9: =SUM($K$8:Z8)*Z8 -> 0 | AA9: =SUM($K$8:AA8)*AA8 -> 0 | AB9: =SUM($K$8:AB8)*AB8 -> 0 | AC9: =SUM($K$8:AC8)*AC8 -> 0 | AD9: =SUM($K$8:AD8)*AD8 -> 0 | AE9: =SUM($K$8:AE8)*AE8 -> 0 | AF9: =SUM($K$8:AF8)*AF8 -> 0 | AG9: =SUM($K$8:AG8)*AG8 -> 0 | AH9: =SUM($K$8:AH8)*AH8 -> 0 | AI9: =SUM($K$8:AI8)*AI8 -> 0 | AJ9: =SUM($K$8:AJ8)*AJ8 -> 0 | AK9: =SUM($K$8:AK8)*AK8 -> 0 | AL9: =SUM($K$8:AL8)*AL8 -> 0 | AM9: =SUM($K$8:AM8)*AM8 -> 0 | AN9: =SUM($K$8:AN8)*AN8 -> 0
A10: Reserves | H10: Recoverable Reserves
A11: Oil | B11: =Dashboard!D11 -> 12 | C11: MMT | H11: =SUM(K11:AN11) -> 3 | I11: MMT | K11: =$B11*$B$14*K$15 -> 0 | L11: =$B11*$B$14*L$15 -> 0 | M11: 0.63 | N11: 0.15 | O11: 0.18 | P11: 0.21 | Q11: 0.24 | R11: 0.36 | S11: 0.27 | T11: 0.3 | U11: 0.24 | V11: 0.21 | W11: 0.12 | X11: 0.09 | Y11: 0 | Z11: 0 | AA11: 0 | AB11: 0 | AC11: 0 | AD11: 0 | AE11: 0 | AF11: 0 | AG11: 0 | AH11: 0 | AI11: 0 | AJ11: 0 | AK11: 0 | AL11: 0 | AM11: 0 | AN11: 0
A12: Gas | B12: =Dashboard!D12 -> 2 | C12: BCM | H12: =SUM(K12:AN12) -> 0.5 | I12: BCM | K12: =$B12*$B$14*K$15 -> 0 | L12: 0 | M12: 0.105 | N12: 0.025 | O12: 0.03 | P12: 0.035 | Q12: 0.04 | R12: 0.06 | S12: 0.045 | T12: 0.05 | U12: 0.04 | V12: 0.035 | W12: 0.02 | X12: 0.015 | Y12: 0 | Z12: 0 | AA12: 0 | AB12: 0 | AC12: 0 | AD12: 0 | AE12: 0 | AF12: 0 | AG12: 0 | AH12: 0 | AI12: 0 | AJ12: 0 | AK12: 0 | AL12: 0 | AM12: 0 | AN12: 0
A13: Total | B13: =SUM(B11:B12) -> 14 | C13: MMTOE | H13: =SUM(K13:AN13) -> 3.5 | I13: MMTOE | K13: =SUM(K11:K12) -> 0 | L13: =SUM(L11:L12) -> 0 | M13: 0.735 | N13: 0.175 | O13: 0.21 | P13: 0.245 | Q13: 0.28 | R13: 0.42 | S13: 0.315 | T13: 0.35 | U13: 0.28 | V13: 0.245 | W13: 0.14 | X13: 0.105 | Y13: 0 | Z13: 0 | AA13: 0 | AB13: 0 | AC13: 0 | AD13: 0 | AE13: 0 | AF13: 0 | AG13: 0 | AH13: 0 | AI13: 0 | AJ13: 0 | AK13: 0 | AL13: 0 | AM13: 0 | AN13: 0
A14: Recovery | B14: =Dashboard!$D$15 -> 0.25
J15: Production Phasing | K15: =IF(Dashboard!$L$11=1,K24,K23) -> 0 | L15: =IF(Dashboard!$L$11=1,L24,L23) -> 0 | M15: =IF(Dashboard!$L$11=1,M24,M23) -> 0.21 | N15: =IF(Dashboard!$L$11=1,N24,N23) -> 0.05 | O15: =IF(Dashboard!$L$11=1,O24,O23) -> 0.06 | P15: =IF(Dashboard!$L$11=1,P24,P23) -> 0.07 | Q15: =IF(Dashboard!$L$11=1,Q24,Q23) -> 0.08 | R15: =IF(Dashboard!$L$11=1,R24,R23) -> 0.12 | S15: =IF(Dashboard!$L$11=1,S24,S23) -> 0.09 | T15: =IF(Dashboard!$L$11=1,T24,T23) -> 0.1 | U15: =IF(Dashboard!$L$11=1,U24,U23) -> 0.08 | V15: =IF(Dashboard!$L$11=1,V24,V23) -> 0.07 | W15: =IF(Dashboard!$L$11=1,W24,W23) -> 0.04 | X15: =IF(Dashboard!$L$11=1,X24,X23) -> 0.03 | Y15: =IF(Dashboard!$L$11=1,Y24,Y23) -> 0 | Z15: =IF(Dashboard!$L$11=1,Z24,Z23) -> 0 | AA15: =IF(Dashboard!$L$11=1,AA24,AA23) -> 0
I17: Ramp up Period | J17: =Dashboard!N21 -> 3
I18: Plateau Period | J18: =Dashboard!N22 -> 6
I19: Ramp Down Period | J19: =Dashboard!N23 -> 3
I20: Total | J20: =Dashboard!N24 -> 12
I22: Phasing calculation | K22: =IF(K9<$J$17,SUM($J$8:K8),IF($J$20-K9>=($J$19-1),$J$17,$J$20-K9+1))*K8 -> 0 | L22: =IF(L9<$J$17,SUM($J$8:L8),IF($J$20-L9>=($J$19-1),$J$17,$J$20-L9+1))*L8 -> 1 | M22: =IF(M9<$J$17,SUM($J$8:M8),IF($J$20-M9>=($J$19-1),$J$17,$J$20-M9+1))*M8 -> 2 | N22: =IF(N9<$J$17,SUM($J$8:N8),IF($J$20-N9>=($J$19-1),$J$17,$J$20-N9+1))*N8 -> 3 | O22: =IF(O9<$J$17,SUM($J$8:O8),IF($J$20-O9>=($J$19-1),$J$17,$J$20-O9+1))*O8 -> 3 | P22: =IF(P9<$J$17,SUM($J$8:P8),IF($J$20-P9>=($J$19-1),$J$17,$J$20-P9+1))*P8 -> 3 | Q22: =IF(Q9<$J$17,SUM($J$8:Q8),IF($J$20-Q9>=($J$19-1),$J$17,$J$20-Q9+1))*Q8 -> 3 | R22: =IF(R9<$J$17,SUM($J$8:R8),IF($J$20-R9>=($J$19-1),$J$17,$J$20-R9+1))*R8 -> 3 | S22: =IF(S9<$J$17,SUM($J$8:S8),IF($J$20-S9>=($J$19-1),$J$17,$J$20-S9+1))*S8 -> 3 | T22: =IF(T9<$J$17,SUM($J$8:T8),IF($J$20-T9>=($J$19-1),$J$17,$J$20-T9+1))*T8 -> 3 | U22: =IF(U9<$J$17,SUM($J$8:U8),IF($J$20-U9>=($J$19-1),$J$17,$J$20-U9+1))*U8 -> 3 | V22: =IF(V9<$J$17,SUM($J$8:V8),IF($J$20-V9>=($J$19-1),$J$17,$J$20-V9+1))*V8 -> 2 | W22: =IF(W9<$J$17,SUM($J$8:W8),IF($J$20-W9>=($J$19-1),$J$17,$J$20-W9+1))*W8 -> 1 | X22: =IF(X9<$J$17,SUM($J$8:X8),IF($J$20-X9>=($J$19-1),$J$17,$J$20-X9+1))*X8 -> 0 | Y22: =IF(Y9<$J$17,SUM($J$8:Y8),IF($J$20-Y9>=($J$19-1),$J$17,$J$20-Y9+1))*Y8 -> 0 | Z22: =IF(Z9<$J$17,SUM($J$8:Z8),IF($J$20-Z9>=($J$19-1),$J$17,$J$20-Z9+1))*Z8 -> 0 | AA22: =IF(AA9<$J$17,SUM($J$8:AA8),IF($J$20-AA9>=($J$19-1),$J$17,$J$20-AA9+1))*AA8 -> 0 | AB22: =IF(AB9<$J$17,SUM($J$8:AB8),IF($J$20-AB9>=($J$19-1),$J$17,$J$20-AB9+1))*AB8 -> 0 | AC22: =IF(AC9<$J$17,SUM($J$8:AC8),IF($J$20-AC9>=($J$19-1),$J$17,$J$20-AC9+1))*AC8 -> 0 | AD22: =IF(AD9<$J$17,SUM($J$8:AD8),IF($J$20-AD9>=($J$19-1),$J$17,$J$20-AD9+1))*AD8 -> 0 | AE22: =IF(AE9<$J$17,SUM($J$8:AE8),IF($J$20-AE9>=($J$19-1),$J$17,$J$20-AE9+1))*AE8 -> 0 | AF22: =IF(AF9<$J$17,SUM($J$8:AF8),IF($J$20-AF9>=($J$19-1),$J$17,$J$20-AF9+1))*AF8 -> 0 | AG22: =IF(AG9<$J$17,SUM($J$8:AG8),IF($J$20-AG9>=($J$19-1),$J$17,$J$20-AG9+1))*AG8 -> 0 | AH22: =IF(AH9<$J$17,SUM($J$8:AH8),IF($J$20-AH9>=($J$19-1),$J$17,$J$20-AH9+1))*AH8 -> 0 | AI22: =IF(AI9<$J$17,SUM($J$8:AI8),IF($J$20-AI9>=($J$19-1),$J$17,$J$20-AI9+1))*AI8 -> 0 | AJ22: =IF(AJ9<$J$17,SUM($J$8:AJ8),IF($J$20-AJ9>=($J$19-1),$J$17,$J$20-AJ9+1))*AJ8 -> 0 | AK22: =IF(AK9<$J$17,SUM($J$8:AK8),IF($J$20-AK9>=($J$19-1),$J$17,$J$20-AK9+1))*AK8 -> 0 | AL22: =IF(AL9<$J$17,SUM($J$8:AL8),IF($J$20-AL9>=($J$19-1),$J$17,$J$20-AL9+1))*AL8 -> 0 | AM22: =IF(AM9<$J$17,SUM($J$8:AM8),IF($J$20-AM9>=($J$19-1),$J$17,$J$20-AM9+1))*AM8 -> 0 | AN22: =IF(AN9<$J$17,SUM($J$8:AN8),IF($J$20-AN9>=($J$19-1),$J$17,$J$20-AN9+1))*AN8 -> 0
H23: Model Pre-defined | I23: Production Phasing | J23: =SUM(K23:AN23) -> 1 | K23: =1/SUM($K$22:$AN$22)*K22 -> 0 | L23: =1/SUM($K$22:$AN$22)*L22 -> 0.03333333333 | M23: 0.06666666667 | N23: 0.1 | O23: 0.1 | P23: 0.1 | Q23: 0.1 | R23: 0.1 | S23: 0.1 | T23: 0.1 | U23: 0.1 | V23: 0.06666666667 | W23: 0.03333333333 | X23: 0 | Y23: 0 | Z23: 0 | AA23: 0 | AB23: 0 | AC23: 0 | AD23: 0 | AE23: 0 | AF23: 0 | AG23: 0 | AH23: 0 | AI23: 0 | AJ23: 0 | AK23: 0 | AL23: 0 | AM23: 0 | AN23: 0
H24: User Input | I24: Production Phasing | J24: =SUM(K24:AN24) -> 1 | K24: =Dashboard!O16 -> 0 | L24: =Dashboard!P16 -> 0 | M24: =Dashboard!Q16 -> 0.21 | N24: =Dashboard!R16 -> 0.05 | O24: =Dashboard!S16 -> 0.06 | P24: =Dashboard!T16 -> 0.07 | Q24: =Dashboard!U16 -> 0.08 | R24: =Dashboard!V16 -> 0.12 | S24: =Dashboard!W16 -> 0.09 | T24: =Dashboard!X16 -> 0.1 | U24: =Dashboard!Y16 -> 0.08 | V24: =Dashboard!Z16 -> 0.07 | W24: =Dashboard!AA16 -> 0.04 | X24: =Dashboard!AB16 -> 0.03 | Y24: =Dashboard!AC16 -> 0 | Z24: =Dashboard!AD16 -> 0 | AA24: =Dashboard!AE16 -> 0 | AB24: =Dashboard!AF16 -> 0 | AC24: =Dashboard!AG16 -> 0 | AD24: =Dashboard!AH16 -> 0 | AE24: =Dashboard!AI16 -> 0 | AF24: =Dashboard!AJ16 -> 0 | AG24: =Dashboard!AK16 -> 0 | AH24: =Dashboard!AL16 -> 0 | AI24: =Dashboard!AM16 -> 0 | AJ24: =Dashboard!AN16 -> 0 | AK24: =Dashboard!AO16 -> 0 | AL24: =Dashboard!AP16 -> 0 | AM24: =Dashboard!AQ16 -> 0 | AN24: =Dashboard!AR12 -> 0

Sheet Opex (hidden)
I1: Period No. | J1: =Timings!J1 -> 1 | K1: =Timings!K1 -> 2 | L1: =Timings!L1 -> 3 | M1: =Timings!M1 -> 4 | N1: =Timings!N1 -> 5 | O1: =Timings!O1 -> 6 | P1: =Timings!P1 -> 7 | Q1: =Timings!Q1 -> 8 | R1: =Timings!R1 -> 9 | S1: =Timings!S1 -> 10 | T1: =Timings!T1 -> 11 | U1: =Timings!U1 -> 12 | V1: =Timings!V1 -> 13 | W1: =Timings!W1 -> 14 | X1: =Timings!X1 -> 15 | Y1: =Timings!Y1 -> 16 | Z1: =Timings!Z1 -> 17 | AA1: =Timings!AA1 -> 0 | AB1: =Timings!AB1 -> 0 | AC1: =Timings!AC1 -> 0 | AD1: =Timings!AD1 -> 0 | AE1: =Timings!AE1 -> 0 | AF1: =Timings!AF1 -> 0 | AG1: =Timings!AG1 -> 0 | AH1: =Timings!AH1 -> 0 | AI1: =Timings!AI1 -> 0 | AJ1: =Timings!AJ1 -> 0 | AK1: =Timings!AK1 -> 0 | AL1: =Timings!AL1 -> 0 | AM1: =Timings!AM1 -> 0
C2: OPEX | I2: Start Date | J2: =Timings!J2 -> 2019-04-01 | K2: =Timings!K2 -> 2020-04-01 | L2: =Timings!L2 -> 2021-04-01 | M2: =Timings!M2 -> 2022-04-01 | N2: =Timings!N2 -> 2023-04-01 | O2: =Timings!O2 -> 2024-04-01 | P2: =Timings!P2 -> 2025-04-01 | Q2: =Timings!Q2 -> 2026-04-01 | R2: =Timings!R2 -> 2027-04-01 | S2: =Timings!S2 -> 2028-04-01 | T2: =Timings!T2 -> 2029-04-01 | U2: =Timings!U2 -> 2030-04-01 | V2: =Timings!V2 -> 2031-04-01 | W2: =Timings!W2 -> 2032-04-01 | X2: =Timings!X2 -> 2033-04-01 | Y2: =Timings!Y2 -> 2034-04-01 | Z2: =Timings!Z2 -> 2035-04-01 | AA2: =Timings!AA2 -> 2036-04-01 | AB2: =Timings!AB2 -> 2037-04-01 | AC2: =Timings!AC2 -> 2038-04-01 | AD2: =Timings!AD2 -> 2039-04-01 | AE2: =Timings!AE2 -> 2040-04-01 | AF2: =Timings!AF2 -> 2041-04-01 | AG2: =Timings!AG2 -> 2042-04-01 | AH2: =Timings!AH2 -> 2043-04-01 | AI2: =Timings!AI2 -> 2044-04-01 | AJ2: =Timings!AJ2 -> 2045-04-01 | AK2: =Timings!AK2 -> 2046-04-01 | AL2: =Timings!AL2 -> 2047-04-01 | AM2: =Timings!AM2 -> 2048-04-01
I3: End Date | J3: =Timings!J3 -> 2020-03-31 | K3: =Timings!K3 -> 2021-03-31 | L3: =Timings!L3 -> 2022-03-31 | M3: =Timings!M3 -> 2023-03-31 | N3: =Timings!N3 -> 2024-03-31 | O3: =Timings!O3 -> 2025-03-31 | P3: =Timings!P3 -> 2026-03-31 | Q3: =Timings!Q3 -> 2027-03-31 | R3: =Timings!R3 -> 2028-03-31 | S3: =Timings!S3 -> 2029-03-31 | T3: =Timings!T3 -> 2030-03-31 | U3: =Timings!U3 -> 2031-03-31 | V3: =Timings!V3 -> 2032-03-31 | W3: =Timings!W3 -> 2033-03-31 | X3: =Timings!X3 -> 2034-03-31 | Y3: =Timings!Y3 -> 2035-03-31 | Z3: =Timings!Z3 -> 2036-03-31 | AA3: =Timings!AA3 -> 2037-03-31 | AB3: =Timings!AB3 -> 2038-03-31 | AC3: =Timings!AC3 -> 2039-03-31 | AD3: =Timings!AD3 -> 2040-03-31 | AE3: =Timings!AE3 -> 2041-03-31 | AF3: =Timings!AF3 -> 2042-03-31 | AG3: =Timings!AG3 -> 2043-03-31 | AH3: =Timings!AH3 -> 2044-03-31 | AI3: =Timings!AI3 -> 2045-03-31 | AJ3: =Timings!AJ3 -> 2046-03-31 | AK3: =Timings!AK3 -> 2047-03-31 | AL3: =Timings!AL3 -> 2048-03-31 | AM3: =Timings!AM3 -> 2049-03-31
I4: Year | J4: =Timings!J4 -> 2020 | K4: =Timings!K4 -> 2021 | L4: =Timings!L4 -> 2022 | M4: =Timings!M4 -> 2023 | N4: =Timings!N4 -> 2024 | O4: =Timings!O4 -> 2025 | P4: =Timings!P4 -> 2026 | Q4: =Timings!Q4 -> 2027 | R4: =Timings!R4 -> 2028 | S4: =Timings!S4 -> 2029 | T4: =Timings!T4 -> 2030 | U4: =Timings!U4 -> 2031 | V4: =Timings!V4 -> 2032 | W4: =Timings!W4 -> 2033 | X4: =Timings!X4 -> 2034 | Y4: =Timings!Y4 -> 2035 | Z4: =Timings!Z4 -> 2036 | AA4: =Timings!AA4 -> 2037 | AB4: =Timings!AB4 -> 2038 | AC4: =Timings!AC4 -> 2039 | AD4: =Timings!AD4 -> 2040 | AE4: =Timings!AE4 -> 2041 | AF4: =Timings!AF4 -> 2042 | AG4: =Timings!AG4 -> 2043 | AH4: =Timings!AH4 -> 2044 | AI4: =Timings!AI4 -> 2045 | AJ4: =Timings!AJ4 -> 2046 | AK4: =Timings!AK4 -> 2047 | AL4: =Timings!AL4 -> 2048 | AM4: =Timings!AM4 -> 2049
I5: Appraisal | J5: =Timings!J5 -> 1 | K5: =Timings!K5 -> 0 | L5: =Timings!L5 -> 0 | M5: =Timings!M5 -> 0 | N5: =Timings!N5 -> 0 | O5: =Timings!O5 -> 0 | P5: =Timings!P5 -> 0 | Q5: =Timings!Q5 -> 0 | R5: =Timings!R5 -> 0 | S5: =Timings!S5 -> 0 | T5: =Timings!T5 -> 0 | U5: =Timings!U5 -> 0 | V5: =Timings!V5 -> 0 | W5: =Timings!W5 -> 0 | X5: =Timings!X5 -> 0 | Y5: =Timings!Y5 -> 0 | Z5: =Timings!Z5 -> 0 | AA5: =Timings!AA5 -> 0 | AB5: =Timings!AB5 -> 0 | AC5: =Timings!AC5 -> 0 | AD5: =Timings!AD5 -> 0 | AE5: =Timings!AE5 -> 0 | AF5: =Timings!AF5 -> 0 | AG5: =Timings!AG5 -> 0 | AH5: =Timings!AH5 -> 0 | AI5: =Timings!AI5 -> 0 | AJ5: =Timings!AJ5 -> 0 | AK5: =Timings!AK5 -> 0 | AL5: =Timings!AL5 -> 0 | AM5: =Timings!AM5 -> 0
I6: Well Development | J6: =Timings!J6 -> 1 | K6: =Timings!K6 -> 1 | L6: =Timings!L6 -> 0 | M6: =Timings!M6 -> 0 | N6: =Timings!N6 -> 0 | O6: =Timings!O6 -> 0 | P6: =Timings!P6 -> 0 | Q6: =Timings!Q6 -> 0 | R6: =Timings!R6 -> 0 | S6: =Timings!S6 -> 0 | T6: =Timings!T6 -> 0 | U6: =Timings!U6 -> 0 | V6: =Timings!V6 -> 0 | W6: =Timings!W6 -> 0 | X6: =Timings!X6 -> 0 | Y6: =Timings!Y6 -> 0 | Z6: =Timings!Z6 -> 0 | AA6: =Timings!AA6 -> 0 | AB6: =Timings!AB6 -> 0 | AC6: =Timings!AC6 -> 0 | AD6: =Timings!AD6 -> 0 | AE6: =Timings!AE6 -> 0 | AF6: =Timings!AF6 -> 0 | AG6: =Timings!AG6 -> 0 | AH6: =Timings!AH6 -> 0 | AI6: =Timings!AI6 -> 0 | AJ6: =Timings!AJ6 -> 0 | AK6: =Timings!AK6 -> 0 | AL6: =Timings!AL6 -> 0 | AM6: =Timings!AM6 -> 0
I7: Facilities | J7: =Timings!J7 -> 1 | K7: =Timings!K7 -> 1 | L7: =Timings!L7 -> 0 | M7: =Timings!M7 -> 0 | N7: =Timings!N7 -> 0 | O7: =Timings!O7 -> 0 | P7: =Timings!P7 -> 0 | Q7: =Timings!Q7 -> 0 | R7: =Timings!R7 -> 0 | S7: =Timings!S7 -> 0 | T7: =Timings!T7 -> 0 | U7: =Timings!U7 -> 0 | V7: =Timings!V7 -> 0 | W7: =Timings!W7 -> 0 | X7: =Timings!X7 -> 0 | Y7: =Timings!Y7 -> 0 | Z7: =Timings!Z7 -> 0 | AA7: =Timings!AA7 -> 0 | AB7: =Timings!AB7 -> 0 | AC7: =Timings!AC7 -> 0 | AD7: =Timings!AD7 -> 0 | AE7: =Timings!AE7 -> 0 | AF7: =Timings!AF7 -> 0 | AG7: =Timings!AG7 -> 0 | AH7: =Timings!AH7 -> 0 | AI7: =Timings!AI7 -> 0 | AJ7: =Timings!AJ7 -> 0 | AK7: =Timings!AK7 -> 0 | AL7: =Timings!AL7 -> 0 | AM7: =Timings!AM7 -> 0
I8: Operations | J8: =Timings!J8 -> 0 | K8: =Timings!K8 -> 1 | L8: =Timings!L8 -> 1 | M8: =Timings!M8 -> 1 | N8: =Timings!N8 -> 1 | O8: =Timings!O8 -> 1 | P8: =Timings!P8 -> 1 | Q8: =Timings!Q8 -> 1 | R8: =Timings!R8 -> 1 | S8: =Timings!S8 -> 1 | T8: =Timings!T8 -> 1 | U8: =Timings!U8 -> 1 | V8: =Timings!V8 -> 1 | W8: =Timings!W8 -> 0 | X8: =Timings!X8 -> 0 | Y8: =Timings!Y8 -> 0 | Z8: =Timings!Z8 -> 0 | AA8: =Timings!AA8 -> 0 | AB8: =Timings!AB8 -> 0 | AC8: =Timings!AC8 -> 0 | AD8: =Timings!AD8 -> 0 | AE8: =Timings!AE8 -> 0 | AF8: =Timings!AF8 -> 0 | AG8: =Timings!AG8 -> 0 | AH8: =Timings!AH8 -> 0 | AI8: =Timings!AI8 -> 0 | AJ8: =Timings!AJ8 -> 0 | AK8: =Timings!AK8 -> 0 | AL8: =Timings!AL8 -> 0 | AM8: =Timings!AM8 -> 0
C10: Opex
C11: =Inputs!C98 -> Processing cost - Oil | E11: =G11/$G$13 -> 0.907535796 | G11: =SUM(J11:AN11) -> 198.8749809 | H11: USD Mn | J11: =Inputs!J98*(1+Inputs!$E$134)^J1 -> 0 | K11: =Inputs!K98*(1+Inputs!$E$134)^K1 -> 0 | L11: =Inputs!L98*(1+Inputs!$E$134)^L1 -> 28.49144988 | M11: =Inputs!M98*(1+Inputs!$E$134)^M1 -> 7.326372826 | N11: =Inputs!N98*(1+Inputs!$E$134)^N1 -> 9.494979182 | O11: =Inputs!O98*(1+Inputs!$E$134)^O1 -> 11.96367377 | P11: =Inputs!P98*(1+Inputs!$E$134)^P1 -> 14.76659162 | Q11: =Inputs!Q98*(1+Inputs!$E$134)^Q1 -> 23.92187843 | R11: =Inputs!R98*(1+Inputs!$E$134)^R1 -> 19.37672153 | S11: =Inputs!S98*(1+Inputs!$E$134)^S1 -> 23.25206584 | T11: =Inputs!T98*(1+Inputs!$E$134)^T1 -> 20.08978488 | U11: =Inputs!U98*(1+Inputs!$E$134)^U1 -> 18.98484671 | V11: =Inputs!V98*(1+Inputs!$E$134)^V1 -> 11.71636254 | W11: =Inputs!W98*(1+Inputs!$E$134)^W1 -> 9.49025366 | X11: =Inputs!X98*(1+Inputs!$E$134)^X1 -> 0 | Y11: =Inputs!Y98*(1+Inputs!$E$134)^Y1 -> 0 | Z11: =Inputs!Z98*(1+Inputs!$E$134)^Z1 -> 0 | AA11: =Inputs!AA98*(1+Inputs!$E$134)^AA1 -> 0 | AB11: =Inputs!AB98*(1+Inputs!$E$134)^AB1 -> 0 | AC11: =Inputs!AC98*(1+Inputs!$E$134)^AC1 -> 0 | AD11: =Inputs!AD98*(1+Inputs!$E$134)^AD1 -> 0 | AE11: =Inputs!AE98*(1+Inputs!$E$134)^AE1 -> 0 | AF11: =Inputs!AF98*(1+Inputs!$E$134)^AF1 -> 0 | AG11: =Inputs!AG98*(1+Inputs!$E$134)^AG1 -> 0 | AH11: =Inputs!AH98*(1+Inputs!$E$134)^AH1 -> 0 | AI11: =Inputs!AI98*(1+Inputs!$E$134)^AI1 -> 0 | AJ11: =Inputs!AJ98*(1+Inputs!$E$134)^AJ1 -> 0 | AK11: =Inputs!AK98*(1+Inputs!$E$134)^AK1 -> 0 | AL11: =Inputs!AL98*(1+Inputs!$E$134)^AL1 -> 0 | AM11: =Inputs!AM98*(1+Inputs!$E$134)^AM1 -> 0
C12: =Inputs!C99 -> Processing cost - Gas | E12: =G12/$G$13 -> 0.09246420396 | G12: =SUM(J12:AN12) -> 20.26235976 | H12: USD Mn | J12: =Inputs!J99*(1+Inputs!$E$134)^J1 -> 0 | K12: =Inputs!K99*(1+Inputs!$E$134)^K1 -> 0 | L12: =Inputs!L99*(1+Inputs!$E$134)^L1 -> 2.90284884 | M12: =Inputs!M99*(1+Inputs!$E$134)^M1 -> 0.7464468446 | N12: =Inputs!N99*(1+Inputs!$E$134)^N1 -> 0.9673951106 | O12: =Inputs!O99*(1+Inputs!$E$134)^O1 -> 1.218917839 | P12: =Inputs!P99*(1+Inputs!$E$134)^P1 -> 1.504492876 | Q12: =Inputs!Q99*(1+Inputs!$E$134)^Q1 -> 2.437278459 | R12: =Inputs!R99*(1+Inputs!$E$134)^R1 -> 1.974195552 | S12: =Inputs!S99*(1+Inputs!$E$134)^S1 -> 2.369034662 | T12: =Inputs!T99*(1+Inputs!$E$134)^T1 -> 2.046845948 | U12: =Inputs!U99*(1+Inputs!$E$134)^U1 -> 1.934269421 | V12: =Inputs!V99*(1+Inputs!$E$134)^V1 -> 1.193720557 | W12: =Inputs!W99*(1+Inputs!$E$134)^W1 -> 0.9669136511 | X12: =Inputs!X99*(1+Inputs!$E$134)^X1 -> 0 | Y12: =Inputs!Y99*(1+Inputs!$E$134)^Y1 -> 0 | Z12: =Inputs!Z99*(1+Inputs!$E$134)^Z1 -> 0 | AA12: =Inputs!AA99*(1+Inputs!$E$134)^AA1 -> 0 | AB12: =Inputs!AB99*(1+Inputs!$E$134)^AB1 -> 0 | AC12: =Inputs!AC99*(1+Inputs!$E$134)^AC1 -> 0 | AD12: =Inputs!AD99*(1+Inputs!$E$134)^AD1 -> 0 | AE12: =Inputs!AE99*(1+Inputs!$E$134)^AE1 -> 0 | AF12: =Inputs!AF99*(1+Inputs!$E$134)^AF1 -> 0 | AG12: =Inputs!AG99*(1+Inputs!$E$134)^AG1 -> 0 | AH12: =Inputs!AH99*(1+Inputs!$E$134)^AH1 -> 0 | AI12: =Inputs!AI99*(1+Inputs!$E$134)^AI1 -> 0 | AJ12: =Inputs!AJ99*(1+Inputs!$E$134)^AJ1 -> 0 | AK12: =Inputs!AK99*(1+Inputs!$E$134)^AK1 -> 0 | AL12: =Inputs!AL99*(1+Inputs!$E$134)^AL1 -> 0 | AM12: =Inputs!AM99*(1+Inputs!$E$134)^AM1 -> 0
C13: Total | G13: =SUM(G11:G12) -> 219.1373406 | H13: USD Mn | J13: =SUM(J11:J12) -> 0 | K13: 0 | L13: 31.39429872 | M13: 8.07281967 | N13: 10.46237429 | O13: 13.18259161 | P13: 16.2710845 | Q13: 26.35915689 | R13: 21.35091708 | S13: 25.6211005 | T13: 22.13663083 | U13: 20.91911613 | V13: 12.9100831 | W13: 10.45716731 | X13: 0 | Y13: 0 | Z13: 0 | AA13: 0 | AB13: 0 | AC13: 0 | AD13: 0 | AE13: 0 | AF13: 0 | AG13: 0 | AH13: 0 | AI13: 0 | AJ13: 0 | AK13: 0 | AL13: 0 | AM13: 0

Sheet Revenue (hidden)
I1: Period No. | J1: =Timings!J1 -> 1 | K1: =Timings!K1 -> 2 | L1: =Timings!L1 -> 3 | M1: =Timings!M1 -> 4 | N1: =Timings!N1 -> 5 | O1: =Timings!O1 -> 6 | P1: =Timings!P1 -> 7 | Q1: =Timings!Q1 -> 8 | R1: =Timings!R1 -> 9 | S1: =Timings!S1 -> 10 | T1: =Timings!T1 -> 11 | U1: =Timings!U1 -> 12 | V1: =Timings!V1 -> 13 | W1: =Timings!W1 -> 14 | X1: =Timings!X1 -> 15 | Y1: =Timings!Y1 -> 16 | Z1: =Timings!Z1 -> 17 | AA1: =Timings!AA1 -> 0 | AB1: =Timings!AB1 -> 0 | AC1: =Timings!AC1 -> 0 | AD1: =Timings!AD1 -> 0 | AE1: =Timings!AE1 -> 0 | AF1: =Timings!AF1 -> 0 | AG1: =Timings!AG1 -> 0 | AH1: =Timings!AH1 -> 0 | AI1: =Timings!AI1 -> 0 | AJ1: =Timings!AJ1 -> 0 | AK1: =Timings!AK1 -> 0 | AL1: =Timings!AL1 -> 0 | AM1: =Timings!AM1 -> 0
I2: Start Date | J2: =Timings!J2 -> 2019-04-01 | K2: =Timings!K2 -> 2020-04-01 | L2: =Timings!L2 -> 2021-04-01 | M2: =Timings!M2 -> 2022-04-01 | N2: =Timings!N2 -> 2023-04-01 | O2: =Timings!O2 -> 2024-04-01 | P2: =Timings!P2 -> 2025-04-01 | Q2: =Timings!Q2 -> 2026-04-01 | R2: =Timings!R2 -> 2027-04-01 | S2: =Timings!S2 -> 2028-04-01 | T2: =Timings!T2 -> 2029-04-01 | U2: =Timings!U2 -> 2030-04-01 | V2: =Timings!V2 -> 2031-04-01 | W2: =Timings!W2 -> 2032-04-01 | X2: =Timings!X2 -> 2033-04-01 | Y2: =Timings!Y2 -> 2034-04-01 | Z2: =Timings!Z2 -> 2035-04-01 | AA2: =Timings!AA2 -> 2036-04-01 | AB2: =Timings!AB2 -> 2037-04-01 | AC2: =Timings!AC2 -> 2038-04-01 | AD2: =Timings!AD2 -> 2039-04-01 | AE2: =Timings!AE2 -> 2040-04-01 | AF2: =Timings!AF2 -> 2041-04-01 | AG2: =Timings!AG2 -> 2042-04-01 | AH2: =Timings!AH2 -> 2043-04-01 | AI2: =Timings!AI2 -> 2044-04-01 | AJ2: =Timings!AJ2 -> 2045-04-01 | AK2: =Timings!AK2 -> 2046-04-01 | AL2: =Timings!AL2 -> 2047-04-01 | AM2: =Timings!AM2 -> 2048-04-01
C3: Revenue | I3: End Date | J3: =Timings!J3 -> 2020-03-31 | K3: =Timings!K3 -> 2021-03-31 | L3: =Timings!L3 -> 2022-03-31 | M3: =Timings!M3 -> 2023-03-31 | N3: =Timings!N3 -> 2024-03-31 | O3: =Timings!O3 -> 2025-03-31 | P3: =Timings!P3 -> 2026-03-31 | Q3: =Timings!Q3 -> 2027-03-31 | R3: =Timings!R3 -> 2028-03-31 | S3: =Timings!S3 -> 2029-03-31 | T3: =Timings!T3 -> 2030-03-31 | U3: =Timings!U3 -> 2031-03-31 | V3: =Timings!V3 -> 2032-03-31 | W3: =Timings!W3 -> 2033-03-31 | X3: =Timings!X3 -> 2034-03-31 | Y3: =Timings!Y3 -> 2035-03-31 | Z3: =Timings!Z3 -> 2036-03-31 | AA3: =Timings!AA3 -> 2037-03-31 | AB3: =Timings!AB3 -> 2038-03-31 | AC3: =Timings!AC3 -> 2039-03-31 | AD3: =Timings!AD3 -> 2040-03-31 | AE3: =Timings!AE3 -> 2041-03-31 | AF3: =Timings!AF3 -> 2042-03-31 | AG3: =Timings!AG3 -> 2043-03-31 | AH3: =Timings!AH3 -> 2044-03-31 | AI3: =Timings!AI3 -> 2045-03-31 | AJ3: =Timings!AJ3 -> 2046-03-31 | AK3: =Timings!AK3 -> 2047-03-31 | AL3: =Timings!AL3 -> 2048-03-31 | AM3: =Timings!AM3 -> 2049-03-31
I4: Year | J4: =Timings!J4 -> 2020 | K4: =Timings!K4 -> 2021 | L4: =Timings!L4 -> 2022 | M4: =Timings!M4 -> 2023 | N4: =Timings!N4 -> 2024 | O4: =Timings!O4 -> 2025 | P4: =Timings!P4 -> 2026 | Q4: =Timings!Q4 -> 2027 | R4: =Timings!R4 -> 2028 | S4: =Timings!S4 -> 2029 | T4: =Timings!T4 -> 2030 | U4: =Timings!U4 -> 2031 | V4: =Timings!V4 -> 2032 | W4: =Timings!W4 -> 2033 | X4: =Timings!X4 -> 2034 | Y4: =Timings!Y4 -> 2035 | Z4: =Timings!Z4 -> 2036 | AA4: =Timings!AA4 -> 2037 | AB4: =Timings!AB4 -> 2038 | AC4: =Timings!AC4 -> 2039 | AD4: =Timings!AD4 -> 2040 | AE4: =Timings!AE4 -> 2041 | AF4: =Timings!AF4 -> 2042 | AG4: =Timings!AG4 -> 2043 | AH4: =Timings!AH4 -> 2044 | AI4: =Timings!AI4 -> 2045 | AJ4: =Timings!AJ4 -> 2046 | AK4: =Timings!AK4 -> 2047 | AL4: =Timings!AL4 -> 2048 | AM4: =Timings!AM4 -> 2049
I5: Appraisal | J5: =Timings!J5 -> 1 | K5: =Timings!K5 -> 0 | L5: =Timings!L5 -> 0 | M5: =Timings!M5 -> 0 | N5: =Timings!N5 -> 0 | O5: =Timings!O5 -> 0 | P5: =Timings!P5 -> 0 | Q5: =Timings!Q5 -> 0 | R5: =Timings!R5 -> 0 | S5: =Timings!S5 -> 0 | T5: =Timings!T5 -> 0 | U5: =Timings!U5 -> 0 | V5: =Timings!V5 -> 0 | W5: =Timings!W5 -> 0 | X5: =Timings!X5 -> 0 | Y5: =Timings!Y5 -> 0 | Z5: =Timings!Z5 -> 0 | AA5: =Timings!AA5 -> 0 | AB5: =Timings!AB5 -> 0 | AC5: =Timings!AC5 -> 0 | AD5: =Timings!AD5 -> 0 | AE5: =Timings!AE5 -> 0 | AF5: =Timings!AF5 -> 0 | AG5: =Timings!AG5 -> 0 | AH5: =Timings!AH5 -> 0 | AI5: =Timings!AI5 -> 0 | AJ5: =Timings!AJ5 -> 0 | AK5: =Timings!AK5 -> 0 | AL5: =Timings!AL5 -> 0 | AM5: =Timings!AM5 -> 0
I6: Well Development | J6: =Timings!J6 -> 1 | K6: =Timings!K6 -> 1 | L6: =Timings!L6 -> 0 | M6: =Timings!M6 -> 0 | N6: =Timings!N6 -> 0 | O6: =Timings!O6 -> 0 | P6: =Timings!P6 -> 0 | Q6: =Timings!Q6 -> 0 | R6: =Timings!R6 -> 0 | S6: =Timings!S6 -> 0 | T6: =Timings!T6 -> 0 | U6: =Timings!U6 -> 0 | V6: =Timings!V6 -> 0 | W6: =Timings!W6 -> 0 | X6: =Timings!X6 -> 0 | Y6: =Timings!Y6 -> 0 | Z6: =Timings!Z6 -> 0 | AA6: =Timings!AA6 -> 0 | AB6: =Timings!AB6 -> 0 | AC6: =Timings!AC6 -> 0 | AD6: =Timings!AD6 -> 0 | AE6: =Timings!AE6 -> 0 | AF6: =Timings!AF6 -> 0 | AG6: =Timings!AG6 -> 0 | AH6: =Timings!AH6 -> 0 | AI6: =Timings!AI6 -> 0 | AJ6: =Timings!AJ6 -> 0 | AK6: =Timings!AK6 -> 0 | AL6: =Timings!AL6 -> 0 | AM6: =Timings!AM6 -> 0
I7: Facilities | J7: =Timings!J7 -> 1 | K7: =Timings!K7 -> 1 | L7: =Timings!L7 -> 0 | M7: =Timings!M7 -> 0 | N7: =Timings!N7 -> 0 | O7: =Timings!O7 -> 0 | P7: =Timings!P7 -> 0 | Q7: =Timings!Q7 -> 0 | R7: =Timings!R7 -> 0 | S7: =Timings!S7 -> 0 | T7: =Timings!T7 -> 0 | U7: =Timings!U7 -> 0 | V7: =Timings!V7 -> 0 | W7: =Timings!W7 -> 0 | X7: =Timings!X7 -> 0 | Y7: =Timings!Y7 -> 0 | Z7: =Timings!Z7 -> 0 | AA7: =Timings!AA7 -> 0 | AB7: =Timings!AB7 -> 0 | AC7: =Timings!AC7 -> 0 | AD7: =Timings!AD7 -> 0 | AE7: =Timings!AE7 -> 0 | AF7: =Timings!AF7 -> 0 | AG7: =Timings!AG7 -> 0 | AH7: =Timings!AH7 -> 0 | AI7: =Timings!AI7 -> 0 | AJ7: =Timings!AJ7 -> 0 | AK7: =Timings!AK7 -> 0 | AL7: =Timings!AL7 -> 0 | AM7: =Timings!AM7 -> 0
I8: Operations | J8: =Timings!J8 -> 0 | K8: =Timings!K8 -> 1 | L8: =Timings!L8 -> 1 | M8: =Timings!M8 -> 1 | N8: =Timings!N8 -> 1 | O8: =Timings!O8 -> 1 | P8: =Timings!P8 -> 1 | Q8: =Timings!Q8 -> 1 | R8: =Timings!R8 -> 1 | S8: =Timings!S8 -> 1 | T8: =Timings!T8 -> 1 | U8: =Timings!U8 -> 1 | V8: =Timings!V8 -> 1 | W8: =Timings!W8 -> 0 | X8: =Timings!X8 -> 0 | Y8: =Timings!Y8 -> 0 | Z8: =Timings!Z8 -> 0 | AA8: =Timings!AA8 -> 0 | AB8: =Timings!AB8 -> 0 | AC8: =Timings!AC8 -> 0 | AD8: =Timings!AD8 -> 0 | AE8: =Timings!AE8 -> 0 | AF8: =Timings!AF8 -> 0 | AG8: =Timings!AG8 -> 0 | AH8: =Timings!AH8 -> 0 | AI8: =Timings!AI8 -> 0 | AJ8: =Timings!AJ8 -> 0 | AK8: =Timings!AK8 -> 0 | AL8: =Timings!AL8 -> 0 | AM8: =Timings!AM8 -> 0
I9: Production Year | J9: =SUM($J$8:J8)*J8 -> 0 | K9: =SUM($J$8:K8)*K8 -> 1 | L9: =SUM($J$8:L8)*L8 -> 2 | M9: =SUM($J$8:M8)*M8 -> 3 | N9: =SUM($J$8:N8)*N8 -> 4 | O9: =SUM($J$8:O8)*O8 -> 5 | P9: =SUM($J$8:P8)*P8 -> 6 | Q9: =SUM($J$8:Q8)*Q8 -> 7 | R9: =SUM($J$8:R8)*R8 -> 8 | S9: =SUM($J$8:S8)*S8 -> 9 | T9: =SUM($J$8:T8)*T8 -> 10 | U9: =SUM($J$8:U8)*U8 -> 11 | V9: =SUM($J$8:V8)*V8 -> 12 | W9: =SUM($J$8:W8)*W8 -> 0 | X9: =SUM($J$8:X8)*X8 -> 0 | Y9: =SUM($J$8:Y8)*Y8 -> 0 | Z9: =SUM($J$8:Z8)*Z8 -> 0 | AA9: =SUM($J$8:AA8)*AA8 -> 0 | AB9: =SUM($J$8:AB8)*AB8 -> 0 | AC9: =SUM($J$8:AC8)*AC8 -> 0 | AD9: =SUM($J$8:AD8)*AD8 -> 0 | AE9: =SUM($J$8:AE8)*AE8 -> 0 | AF9: =SUM($J$8:AF8)*AF8 -> 0 | AG9: =SUM($J$8:AG8)*AG8 -> 0 | AH9: =SUM($J$8:AH8)*AH8 -> 0 | AI9: =SUM($J$8:AI8)*AI8 -> 0 | AJ9: =SUM($J$8:AJ8)*AJ8 -> 0 | AK9: =SUM($J$8:AK8)*AK8 -> 0 | AL9: =SUM($J$8:AL8)*AL8 -> 0 | AM9: =SUM($J$8:AM8)*AM8 -> 0
C11: Production
C12: Oil | E12: MMT | G12: =SUM(J12:AM12) -> 3 | J12: =Inputs!J51 -> 0 | K12: =Inputs!K51 -> 0 | L12: =Inputs!L51 -> 0.63 | M12: =Inputs!M51 -> 0.15 | N12: =Inputs!N51 -> 0.18 | O12: =Inputs!O51 -> 0.21 | P12: =Inputs!P51 -> 0.24 | Q12: =Inputs!Q51 -> 0.36 | R12: =Inputs!R51 -> 0.27 | S12: =Inputs!S51 -> 0.3 | T12: =Inputs!T51 -> 0.24 | U12: =Inputs!U51 -> 0.21 | V12: =Inputs!V51 -> 0.12 | W12: =Inputs!W51 -> 0.09 | X12: =Inputs!X51 -> 0 | Y12: =Inputs!Y51 -> 0 | Z12: =Inputs!Z51 -> 0 | AA12: =Inputs!AA51 -> 0 | AB12: =Inputs!AB51 -> 0 | AC12: =Inputs!AC51 -> 0 | AD12: =Inputs!AD51 -> 0 | AE12: =Inputs!AE51 -> 0 | AF12: =Inputs!AF51 -> 0 | AG12: =Inputs!AG51 -> 0 | AH12: =Inputs!AH51 -> 0 | AI12: =Inputs!AI51 -> 0 | AJ12: =Inputs!AJ51 -> 0 | AK12: =Inputs!AK51 -> 0 | AL12: =Inputs!AL51 -> 0 | AM12: =Inputs!AM51 -> 0
C13: Gas | E13: BCM | G13: =SUM(J13:AM13) -> 0.5 | J13: =Inputs!J52 -> 0 | K13: =Inputs!K52 -> 0 | L13: =Inputs!L52 -> 0.105 | M13: =Inputs!M52 -> 0.025 | N13: =Inputs!N52 -> 0.03 | O13: =Inputs!O52 -> 0.035 | P13: =Inputs!P52 -> 0.04 | Q13: =Inputs!Q52 -> 0.06 | R13: =Inputs!R52 -> 0.045 | S13: =Inputs!S52 -> 0.05 | T13: =Inputs!T52 -> 0.04 | U13: =Inputs!U52 -> 0.035 | V13: =Inputs!V52 -> 0.02 | W13: =Inputs!W52 -> 0.015 | X13: =Inputs!X52 -> 0 | Y13: =Inputs!Y52 -> 0 | Z13: =Inputs!Z52 -> 0 | AA13: =Inputs!AA52 -> 0 | AB13: =Inputs!AB52 -> 0 | AC13: =Inputs!AC52 -> 0 | AD13: =Inputs!AD52 -> 0 | AE13: =Inputs!AE52 -> 0 | AF13: =Inputs!AF52 -> 0 | AG13: =Inputs!AG52 -> 0 | AH13: =Inputs!AH52 -> 0 | AI13: =Inputs!AI52 -> 0 | AJ13: =Inputs!AJ52 -> 0 | AK13: =Inputs!AK52 -> 0 | AL13: =Inputs!AL52 -> 0 | AM13: =Inputs!AM52 -> 0
C14: Oil and Gas | E14: MMT | G14: =SUM(G12:G13) -> 3.5 | J14: =SUM(J12:J13) -> 0 | K14: =SUM(K12:K13) -> 0 | L14: 0.735 | M14: 0.175 | N14: 0.21 | O14: 0.245 | P14: 0.28 | Q14: 0.42 | R14: 0.315 | S14: 0.35 | T14: 0.28 | U14: 0.245 | V14: 0.14 | W14: 0.105 | X14: 0 | Y14: 0 | Z14: 0 | AA14: 0 | AB14: 0 | AC14: 0 | AD14: 0 | AE14: 0 | AF14: 0 | AG14: 0 | AH14: 0 | AI14: 0 | AJ14: 0 | AK14: 0 | AL14: 0 | AM14: 0
C16: Internal Consumption/Loss
C17: Oil | E17: MMT | G17: =SUM(J17:AM17) -> 0 | J17: =Inputs!J55 -> 0 | K17: =Inputs!K55 -> 0 | L17: =Inputs!L55 -> 0 | M17: =Inputs!M55 -> 0 | N17: =Inputs!N55 -> 0 | O17: =Inputs!O55 -> 0 | P17: =Inputs!P55 -> 0 | Q17: =Inputs!Q55 -> 0 | R17: =Inputs!R55 -> 0 | S17: =Inputs!S55 -> 0 | T17: =Inputs!T55 -> 0 | U17: =Inputs!U55 -> 0 | V17: =Inputs!V55 -> 0 | W17: =Inputs!W55 -> 0 | X17: =Inputs!X55 -> 0 | Y17: =Inputs!Y55 -> 0 | Z17: =Inputs!Z55 -> 0 | AA17: =Inputs!AA55 -> 0 | AB17: =Inputs!AB55 -> 0 | AC17: =Inputs!AC55 -> 0 | AD17: =Inputs!AD55 -> 0 | AE17: =Inputs!AE55 -> 0 | AF17: =Inputs!AF55 -> 0 | AG17: =Inputs!AG55 -> 0 | AH17: =Inputs!AH55 -> 0 | AI17: =Inputs!AI55 -> 0 | AJ17: =Inputs!AJ55 -> 0 | AK17: =Inputs!AK55 -> 0 | AL17: =Inputs!AL55 -> 0 | AM17: =Inputs!AM55 -> 0
C18: Gas | E18: BCM | G18: =SUM(J18:AM18) -> 0 | J18: =Inputs!J56 -> 0 | K18: =Inputs!K56 -> 0 | L18: =Inputs!L56 -> 0 | M18: =Inputs!M56 -> 0 | N18: =Inputs!N56 -> 0 | O18: =Inputs!O56 -> 0 | P18: =Inputs!P56 -> 0 | Q18: =Inputs!Q56 -> 0 | R18: =Inputs!R56 -> 0 | S18: =Inputs!S56 -> 0 | T18: =Inputs!T56 -> 0 | U18: =Inputs!U56 -> 0 | V18: =Inputs!V56 -> 0 | W18: =Inputs!W56 -> 0 | X18: =Inputs!X56 -> 0 | Y18: =Inputs!Y56 -> 0 | Z18: =Inputs!Z56 -> 0 | AA18: =Inputs!AA56 -> 0 | AB18: =Inputs!AB56 -> 0 | AC18: =Inputs!AC56 -> 0 | AD18: =Inputs!AD56 -> 0 | AE18: =Inputs!AE56 -> 0 | AF18: =Inputs!AF56 -> 0 | AG18: =Inputs!AG56 -> 0 | AH18: =Inputs!AH56 -> 0 | AI18: =Inputs!AI56 -> 0 | AJ18: =Inputs!AJ56 -> 0 | AK18: =Inputs!AK56 -> 0 | AL18: =Inputs!AL56 -> 0 | AM18: =Inputs!AM56 -> 0
C19: Oil and Gas | E19: MMT | G19: =SUM(G17:G18) -> 0 | J19: =SUM(J17:J18) -> 0 | K19: =SUM(K17:K18) -> 0 | L19: 0 | M19: 0 | N19: 0 | O19: 0 | P19: 0 | Q19: 0 | R19: 0 | S19: 0 | T19: 0 | U19: 0 | V19: 0 | W19: 0 | X19: 0 | Y19: 0 | Z19: 0 | AA19: 0 | AB19: 0 | AC19: 0 | AD19: 0 | AE19: 0 | AF19: 0 | AG19: 0 | AH19: 0 | AI19: 0 | AJ19: 0 | AK19: 0 | AL19: 0 | AM19: 0
C21: Net Production for sale
C22: Oil | E22: MMT | G22: =SUM(J22:AM22) -> 3 | J22: =J12-J17 -> 0 | K22: 0 | L22: 0.63 | M22: 0.15 | N22: 0.18 | O22: 0.21 | P22: 0.24 | Q22: 0.36 | R22: 0.27 | S22: 0.3 | T22: 0.24 | U22: 0.21 | V22: 0.12 | W22: 0.09 | X22: 0 | Y22: 0 | Z22: 0 | AA22: 0 | AB22: 0 | AC22: 0 | AD22: 0 | AE22: 0 | AF22: 0 | AG22: 0 | AH22: 0 | AI22: 0 | AJ22: 0 | AK22: 0 | AL22: 0 | AM22: 0
C23: Gas | E23: BCM | G23: =SUM(J23:AM23) -> 0.5 | J23: =J13-J18 -> 0 | K23: 0 | L23: 0.105 | M23: 0.025 | N23: 0.03 | O23: 0.035 | P23: 0.04 | Q23: 0.06 | R23: 0.045 | S23: 0.05 | T23: 0.04 | U23: 0.035 | V23: 0.02 | W23: 0.015 | X23: 0 | Y23: 0 | Z23: 0 | AA23: 0 | AB23: 0 | AC23: 0 | AD23: 0 | AE23: 0 | AF23: 0 | AG23: 0 | AH23: 0 | AI23: 0 | AJ23: 0 | AK23: 0 | AL23: 0 | AM23: 0
C24: Oil and Gas | E24: MMT | G24: =SUM(G22:G23) -> 3.5 | J24: =SUM(J22:J23) -> 0 | K24: =SUM(K22:K23) -> 0 | L24: =SUM(L22:L23) -> 0.735 | M24: =SUM(M22:M23) -> 0.175 | N24: =SUM(N22:N23) -> 0.21 | O24: =SUM(O22:O23) -> 0.245 | P24: =SUM(P22:P23) -> 0.28 | Q24: =SUM(Q22:Q23) -> 0.42 | R24: =SUM(R22:R23) -> 0.315 | S24: =SUM(S22:S23) -> 0.35 | T24: =SUM(T22:T23) -> 0.28 | U24: =SUM(U22:U23) -> 0.245 | V24: =SUM(V22:V23) -> 0.14 | W24: =SUM(W22:W23) -> 0.105 | X24: =SUM(X22:X23) -> 0 | Y24: =SUM(Y22:Y23) -> 0 | Z24: =SUM(Z22:Z23) -> 0 | AA24: =SUM(AA22:AA23) -> 0 | AB24: =SUM(AB22:AB23) -> 0 | AC24: =SUM(AC22:AC23) -> 0 | AD24: =SUM(AD22:AD23) -> 0 | AE24: =SUM(AE22:AE23) -> 0 | AF24: =SUM(AF22:AF23) -> 0 | AG24: =SUM(AG22:AG23) -> 0 | AH24: =SUM(AH22:AH23) -> 0 | AI24: =SUM(AI22:AI23) -> 0 | AJ24: =SUM(AJ22:AJ23) -> 0 | AK24: =SUM(AK22:AK23) -> 0 | AL24: =SUM(AL22:AL23) -> 0 | AM24: =SUM(AM22:AM23) -> 0
C26: Prices
C27: Oil | E27: =Inputs!D60 -> USD per barrel | G27: =Inputs!$E$60 -> 80 | J27: =$G$27*((1+Inputs!$E$136)^J1)*IF(SUM(J5:J8)>0,1,0) -> 80 | K27: =$G$27*((1+Inputs!$E$136)^K1)*IF(SUM(K5:K8)>0,1,0) -> 80 | L27: =$G$27*((1+Inputs!$E$136)^L1)*IF(SUM(L5:L8)>0,1,0) -> 80 | M27: =$G$27*((1+Inputs!$E$136)^M1)*IF(SUM(M5:M8)>0,1,0) -> 80 | N27: =$G$27*((1+Inputs!$E$136)^N1)*IF(SUM(N5:N8)>0,1,0) -> 80 | O27: =$G$27*((1+Inputs!$E$136)^O1)*IF(SUM(O5:O8)>0,1,0) -> 80 | P27: =$G$27*((1+Inputs!$E$136)^P1)*IF(SUM(P5:P8)>0,1,0) -> 80 | Q27: =$G$27*((1+Inputs!$E$136)^Q1)*IF(SUM(Q5:Q8)>0,1,0) -> 80 | R27: =$G$27*((1+Inputs!$E$136)^R1)*IF(SUM(R5:R8)>0,1,0) -> 80 | S27: =$G$27*((1+Inputs!$E$136)^S1)*IF(SUM(S5:S8)>0,1,0) -> 80 | T27: =$G$27*((1+Inputs!$E$136)^T1)*IF(SUM(T5:T8)>0,1,0) -> 80 | U27: =$G$27*((1+Inputs!$E$136)^U1)*IF(SUM(U5:U8)>0,1,0) -> 80 | V27: =$G$27*((1+Inputs!$E$136)^V1)*IF(SUM(V5:V8)>0,1,0) -> 80 | W27: =$G$27*((1+Inputs!$E$136)^W1)*IF(SUM(W5:W8)>0,1,0) -> 0 | X27: =$G$27*((1+Inputs!$E$136)^X1)*IF(SUM(X5:X8)>0,1,0) -> 0 | Y27: =$G$27*((1+Inputs!$E$136)^Y1)*IF(SUM(Y5:Y8)>0,1,0) -> 0 | Z27: =$G$27*((1+Inputs!$E$136)^Z1)*IF(SUM(Z5:Z8)>0,1,0) -> 0 | AA27: =$G$27*((1+Inputs!$E$136)^AA1)*IF(SUM(AA5:AA8)>0,1,0) -> 0 | AB27: =$G$27*((1+Inputs!$E$136)^AB1)*IF(SUM(AB5:AB8)>0,1,0) -> 0 | AC27: =$G$27*((1+Inputs!$E$136)^AC1)*IF(SUM(AC5:AC8)>0,1,0) -> 0 | AD27: =$G$27*((1+Inputs!$E$136)^AD1)*IF(SUM(AD5:AD8)>0,1,0) -> 0 | AE27: =$G$27*((1+Inputs!$E$136)^AE1)*IF(SUM(AE5:AE8)>0,1,0) -> 0 | AF27: =$G$27*((1+Inputs!$E$136)^AF1)*IF(SUM(AF5:AF8)>0,1,0) -> 0 | AG27: =$G$27*((1+Inputs!$E$136)^AG1)*IF(SUM(AG5:AG8)>0,1,0) -> 0 | AH27: =$G$27*((1+Inputs!$E$136)^AH1)*IF(SUM(AH5:AH8)>0,1,0) -> 0 | AI27: =$G$27*((1+Inputs!$E$136)^AI1)*IF(SUM(AI5:AI8)>0,1,0) -> 0 | AJ27: =$G$27*((1+Inputs!$E$136)^AJ1)*IF(SUM(AJ5:AJ8)>0,1,0) -> 0 | AK27: =$G$27*((1+Inputs!$E$136)^AK1)*IF(SUM(AK5:AK8)>0,1,0) -> 0 | AL27: =$G$27*((1+Inputs!$E$136)^AL1)*IF(SUM(AL5:AL8)>0,1,0) -> 0 | AM27: =$G$27*((1+Inputs!$E$136)^AM1)*IF(SUM(AM5:AM8)>0,1,0) -> 0
E28: INR/MT | J28: =J27*Inputs!$E$140*Inputs!$E$66/Inputs!$E$65 -> 38485.53425 | K28: =K27*Inputs!$E$140*Inputs!$E$66/Inputs!$E$65 -> 38485.53425 | L28: =L27*Inputs!$E$140*Inputs!$E$66/Inputs!$E$65 -> 38485.53425 | M28: =M27*Inputs!$E$140*Inputs!$E$66/Inputs!$E$65 -> 38485.53425 | N28: =N27*Inputs!$E$140*Inputs!$E$66/Inputs!$E$65 -> 38485.53425 | O28: =O27*Inputs!$E$140*Inputs!$E$66/Inputs!$E$65 -> 38485.53425 | P28: =P27*Inputs!$E$140*Inputs!$E$66/Inputs!$E$65 -> 38485.53425 | Q28: =Q27*Inputs!$E$140*Inputs!$E$66/Inputs!$E$65 -> 38485.53425 | R28: =R27*Inputs!$E$140*Inputs!$E$66/Inputs!$E$65 -> 38485.53425 | S28: =S27*Inputs!$E$140*Inputs!$E$66/Inputs!$E$65 -> 38485.53425 | T28: =T27*Inputs!$E$140*Inputs!$E$66/Inputs!$E$65 -> 38485.53425 | U28: =U27*Inputs!$E$140*Inputs!$E$66/Inputs!$E$65 -> 38485.53425 | V28: =V27*Inputs!$E$140*Inputs!$E$66/Inputs!$E$65 -> 38485.53425 | W28: =W27*Inputs!$E$140*Inputs!$E$66/Inputs!$E$65 -> 0 | X28: =X27*Inputs!$E$140*Inputs!$E$66/Inputs!$E$65 -> 0 | Y28: =Y27*Inputs!$E$140*Inputs!$E$66/Inputs!$E$65 -> 0 | Z28: =Z27*Inputs!$E$140*Inputs!$E$66/Inputs!$E$65 -> 0 | AA28: =AA27*Inputs!$E$140*Inputs!$E$66/Inputs!$E$65 -> 0 | AB28: =AB27*Inputs!$E$140*Inputs!$E$66/Inputs!$E$65 -> 0 | AC28: =AC27*Inputs!$E$140*Inputs!$E$66/Inputs!$E$65 -> 0 | AD28: =AD27*Inputs!$E$140*Inputs!$E$66/Inputs!$E$65 -> 0 | AE28: =AE27*Inputs!$E$140*Inputs!$E$66/Inputs!$E$65 -> 0 | AF28: =AF27*Inputs!$E$140*Inputs!$E$66/Inputs!$E$65 -> 0 | AG28: =AG27*Inputs!$E$140*Inputs!$E$66/Inputs!$E$65 -> 0 | AH28: =AH27*Inputs!$E$140*Inputs!$E$66/Inputs!$E$65 -> 0 | AI28: =AI27*Inputs!$E$140*Inputs!$E$66/Inputs!$E$65 -> 0 | AJ28: =AJ27*Inputs!$E$140*Inputs!$E$66/Inputs!$E$65 -> 0 | AK28: =AK27*Inputs!$E$140*Inputs!$E$66/Inputs!$E$65 -> 0 | AL28: =AL27*Inputs!$E$140*Inputs!$E$66/Inputs!$E$65 -> 0 | AM28: =AM27*Inputs!$E$140*Inputs!$E$66/Inputs!$E$65 -> 0
C30: Taxes
C31: =Inputs!C122 -> Sales Tax | E31: % | G31: =Inputs!E122 -> 0 | J31: =J28*$G$31 -> 0 | K31: =K28*$G$31 -> 0 | L31: 0 | M31: 0 | N31: 0 | O31: 0 | P31: 0 | Q31: 0 | R31: 0 | S31: 0 | T31: 0 | U31: 0 | V31: 0 | W31: 0 | X31: 0 | Y31: 0 | Z31: 0 | AA31: 0 | AB31: 0 | AC31: 0 | AD31: 0 | AE31: 0 | AF31: 0 | AG31: 0 | AH31: 0 | AI31: 0 | AJ31: 0 | AK31: 0 | AL31: 0 | AM31: 0
C32: =Inputs!C123 -> VAT | E32: % | G32: =Inputs!E123 -> 0 | J32: =J28*$G$32 -> 0 | K32: =K28*$G$32 -> 0 | L32: 0 | M32: 0 | N32: 0 | O32: 0 | P32: 0 | Q32: 0 | R32: 0 | S32: 0 | T32: 0 | U32: 0 | V32: 0 | W32: 0 | X32: 0 | Y32: 0 | Z32: 0 | AA32: 0 | AB32: 0 | AC32: 0 | AD32: 0 | AE32: 0 | AF32: 0 | AG32: 0 | AH32: 0 | AI32: 0 | AJ32: 0 | AK32: 0 | AL32: 0 | AM32: 0
C34: W.H. Price | E34: INR/MT | J34: =J28-J31-J32 -> 38485.53425 | K34: =K28-K31-K32 -> 38485.53425 | L34: 38485.53425 | M34: 38485.53425 | N34: 38485.53425 | O34: 38485.53425 | P34: 38485.53425 | Q34: 38485.53425 | R34: 38485.53425 | S34: 38485.53425 | T34: 38485.53425 | U34: 38485.53425 | V34: 38485.53425 | W34: 0 | X34: 0 | Y34: 0 | Z34: 0 | AA34: 0 | AB34: 0 | AC34: 0 | AD34: 0 | AE34: 0 | AF34: 0 | AG34: 0 | AH34: 0 | AI34: 0 | AJ34: 0 | AK34: 0 | AL34: 0 | AM34: 0
C36: Royalty | E36: INR/MT | G36: =Inputs!$E$110 -> 0.125 | J36: =(J34-Inputs!$E$112)*IF(Dashboard!$D$13="Deepwater",IF(J9<8,$G$36,$G$37),$G$36)*IF(SUM(J5:J8)>0,1,0) -> 4810.691781 | K36: =(K34-Inputs!$E$112)*IF(Dashboard!$D$13="Deepwater",IF(K9<8,$G$36,$G$37),$G$36)*IF(SUM(K5:K8)>0,1,0) -> 4810.691781 | L36: =(L34-Inputs!$E$112)*IF(Dashboard!$D$13="Deepwater",IF(L9<8,$G$36,$G$37),$G$36)*IF(SUM(L5:L8)>0,1,0) -> 4810.691781 | M36: =(M34-Inputs!$E$112)*IF(Dashboard!$D$13="Deepwater",IF(M9<8,$G$36,$G$37),$G$36)*IF(SUM(M5:M8)>0,1,0) -> 4810.691781 | N36: =(N34-Inputs!$E$112)*IF(Dashboard!$D$13="Deepwater",IF(N9<8,$G$36,$G$37),$G$36)*IF(SUM(N5:N8)>0,1,0) -> 4810.691781 | O36: =(O34-Inputs!$E$112)*IF(Dashboard!$D$13="Deepwater",IF(O9<8,$G$36,$G$37),$G$36)*IF(SUM(O5:O8)>0,1,0) -> 4810.691781 | P36: =(P34-Inputs!$E$112)*IF(Dashboard!$D$13="Deepwater",IF(P9<8,$G$36,$G$37),$G$36)*IF(SUM(P5:P8)>0,1,0) -> 4810.691781 | Q36: =(Q34-Inputs!$E$112)*IF(Dashboard!$D$13="Deepwater",IF(Q9<8,$G$36,$G$37),$G$36)*IF(SUM(Q5:Q8)>0,1,0) -> 4810.691781 | R36: =(R34-Inputs!$E$112)*IF(Dashboard!$D$13="Deepwater",IF(R9<8,$G$36,$G$37),$G$36)*IF(SUM(R5:R8)>0,1,0) -> 4810.691781 | S36: =(S34-Inputs!$E$112)*IF(Dashboard!$D$13="Deepwater",IF(S9<8,$G$36,$G$37),$G$36)*IF(SUM(S5:S8)>0,1,0) -> 4810.691781 | T36: =(T34-Inputs!$E$112)*IF(Dashboard!$D$13="Deepwater",IF(T9<8,$G$36,$G$37),$G$36)*IF(SUM(T5:T8)>0,1,0) -> 4810.691781 | U36: =(U34-Inputs!$E$112)*IF(Dashboard!$D$13="Deepwater",IF(U9<8,$G$36,$G$37),$G$36)*IF(SUM(U5:U8)>0,1,0) -> 4810.691781 | V36: =(V34-Inputs!$E$112)*IF(Dashboard!$D$13="Deepwater",IF(V9<8,$G$36,$G$37),$G$36)*IF(SUM(V5:V8)>0,1,0) -> 4810.691781 | W36: =(W34-Inputs!$E$112)*IF(Dashboard!$D$13="Deepwater",IF(W9<8,$G$36,$G$37),$G$36)*IF(SUM(W5:W8)>0,1,0) -> 0 | X36: =(X34-Inputs!$E$112)*IF(Dashboard!$D$13="Deepwater",IF(X9<8,$G$36,$G$37),$G$36)*IF(SUM(X5:X8)>0,1,0) -> 0 | Y36: =(Y34-Inputs!$E$112)*IF(Dashboard!$D$13="Deepwater",IF(Y9<8,$G$36,$G$37),$G$36)*IF(SUM(Y5:Y8)>0,1,0) -> 0 | Z36: =(Z34-Inputs!$E$112)*IF(Dashboard!$D$13="Deepwater",IF(Z9<8,$G$36,$G$37),$G$36)*IF(SUM(Z5:Z8)>0,1,0) -> 0 | AA36: =(AA34-Inputs!$E$112)*IF(Dashboard!$D$13="Deepwater",IF(AA9<8,$G$36,$G$37),$G$36)*IF(SUM(AA5:AA8)>0,1,0) -> 0 | AB36: =(AB34-Inputs!$E$112)*IF(Dashboard!$D$13="Deepwater",IF(AB9<8,$G$36,$G$37),$G$36)*IF(SUM(AB5:AB8)>0,1,0) -> 0 | AC36: =(AC34-Inputs!$E$112)*IF(Dashboard!$D$13="Deepwater",IF(AC9<8,$G$36,$G$37),$G$36)*IF(SUM(AC5:AC8)>0,1,0) -> 0 | AD36: =(AD34-Inputs!$E$112)*IF(Dashboard!$D$13="Deepwater",IF(AD9<8,$G$36,$G$37),$G$36)*IF(SUM(AD5:AD8)>0,1,0) -> 0 | AE36: =(AE34-Inputs!$E$112)*IF(Dashboard!$D$13="Deepwater",IF(AE9<8,$G$36,$G$37),$G$36)*IF(SUM(AE5:AE8)>0,1,0) -> 0 | AF36: =(AF34-Inputs!$E$112)*IF(Dashboard!$D$13="Deepwater",IF(AF9<8,$G$36,$G$37),$G$36)*IF(SUM(AF5:AF8)>0,1,0) -> 0 | AG36: =(AG34-Inputs!$E$112)*IF(Dashboard!$D$13="Deepwater",IF(AG9<8,$G$36,$G$37),$G$36)*IF(SUM(AG5:AG8)>0,1,0) -> 0 | AH36: =(AH34-Inputs!$E$112)*IF(Dashboard!$D$13="Deepwater",IF(AH9<8,$G$36,$G$37),$G$36)*IF(SUM(AH5:AH8)>0,1,0) -> 0 | AI36: =(AI34-Inputs!$E$112)*IF(Dashboard!$D$13="Deepwater",IF(AI9<8,$G$36,$G$37),$G$36)*IF(SUM(AI5:AI8)>0,1,0) -> 0 | AJ36: =(AJ34-Inputs!$E$112)*IF(Dashboard!$D$13="Deepwater",IF(AJ9<8,$G$36,$G$37),$G$36)*IF(SUM(AJ5:AJ8)>0,1,0) -> 0 | AK36: =(AK34-Inputs!$E$112)*IF(Dashboard!$D$13="Deepwater",IF(AK9<8,$G$36,$G$37),$G$36)*IF(SUM(AK5:AK8)>0,1,0) -> 0 | AL36: =(AL34-Inputs!$E$112)*IF(Dashboard!$D$13="Deepwater",IF(AL9<8,$G$36,$G$37),$G$36)*IF(SUM(AL5:AL8)>0,1,0) -> 0 | AM36: =(AM34-Inputs!$E$112)*IF(Dashboard!$D$13="Deepwater",IF(AM9<8,$G$36,$G$37),$G$36)*IF(SUM(AM5:AM8)>0,1,0) -> 0
G37: =IF(Dashboard!$D$13="Deepwater",5%,"") -> 
C38: Other Charges | E38: INR/MT | G38: =Inputs!E113 -> 0 | J38: =$G$38*IF(SUM(J5:J8)>0,1,0) -> 0 | K38: 0 | L38: 0 | M38: 0 | N38: 0 | O38: 0 | P38: 0 | Q38: 0 | R38: 0 | S38: 0 | T38: 0 | U38: 0 | V38: 0 | W38: 0 | X38: 0 | Y38: 0 | Z38: 0 | AA38: 0 | AB38: 0 | AC38: 0 | AD38: 0 | AE38: 0 | AF38: 0 | AG38: 0 | AH38: 0 | AI38: 0 | AJ38: 0 | AK38: 0 | AL38: 0 | AM38: 0
C40: Net Oil Price | E40: INR/MT | J40: =J28-J32-J31-J36-J38 -> 33674.84247 | K40: =K28-K32-K31-K36-K38 -> 33674.84247 | L40: 33674.84247 | M40: 33674.84247 | N40: 33674.84247 | O40: 33674.84247 | P40: 33674.84247 | Q40: 33674.84247 | R40: 33674.84247 | S40: 33674.84247 | T40: 33674.84247 | U40: 33674.84247 | V40: 33674.84247 | W40: 0 | X40: 0 | Y40: 0 | Z40: 0 | AA40: 0 | AB40: 0 | AC40: 0 | AD40: 0 | AE40: 0 | AF40: 0 | AG40: 0 | AH40: 0 | AI40: 0 | AJ40: 0 | AK40: 0 | AL40: 0 | AM40: 0
E41: USD/MT | J41: =J40/Inputs!$E$140 -> 502.609589 | K41: =K40/Inputs!$E$140 -> 502.609589 | L41: =L40/Inputs!$E$140 -> 502.609589 | M41: =M40/Inputs!$E$140 -> 502.609589 | N41: =N40/Inputs!$E$140 -> 502.609589 | O41: =O40/Inputs!$E$140 -> 502.609589 | P41: =P40/Inputs!$E$140 -> 502.609589 | Q41: =Q40/Inputs!$E$140 -> 502.609589 | R41: =R40/Inputs!$E$140 -> 502.609589 | S41: =S40/Inputs!$E$140 -> 502.609589 | T41: =T40/Inputs!$E$140 -> 502.609589 | U41: =U40/Inputs!$E$140 -> 502.609589 | V41: =V40/Inputs!$E$140 -> 502.609589 | W41: =W40/Inputs!$E$140 -> 0 | X41: =X40/Inputs!$E$140 -> 0 | Y41: =Y40/Inputs!$E$140 -> 0 | Z41: =Z40/Inputs!$E$140 -> 0 | AA41: =AA40/Inputs!$E$140 -> 0 | AB41: =AB40/Inputs!$E$140 -> 0 | AC41: =AC40/Inputs!$E$140 -> 0 | AD41: =AD40/Inputs!$E$140 -> 0 | AE41: =AE40/Inputs!$E$140 -> 0 | AF41: =AF40/Inputs!$E$140 -> 0 | AG41: =AG40/Inputs!$E$140 -> 0 | AH41: =AH40/Inputs!$E$140 -> 0 | AI41: =AI40/Inputs!$E$140 -> 0 | AJ41: =AJ40/Inputs!$E$140 -> 0 | AK41: =AK40/Inputs!$E$140 -> 0 | AL41: =AL40/Inputs!$E$140 -> 0 | AM41: =AM40/Inputs!$E$140 -> 0
C43: Gas | E43: =Inputs!D61 -> USD per mmbtu | G43: =Inputs!$E$61 -> 10 | J43: =$G$43*((1+Inputs!$E$137)^J1)*IF(SUM(J5:J8)>0,1,0) -> 10 | K43: =$G$43*((1+Inputs!$E$137)^K1)*IF(SUM(K5:K8)>0,1,0) -> 10 | L43: =$G$43*((1+Inputs!$E$137)^L1)*IF(SUM(L5:L8)>0,1,0) -> 10 | M43: =$G$43*((1+Inputs!$E$137)^M1)*IF(SUM(M5:M8)>0,1,0) -> 10 | N43: =$G$43*((1+Inputs!$E$137)^N1)*IF(SUM(N5:N8)>0,1,0) -> 10 | O43: =$G$43*((1+Inputs!$E$137)^O1)*IF(SUM(O5:O8)>0,1,0) -> 10 | P43: =$G$43*((1+Inputs!$E$137)^P1)*IF(SUM(P5:P8)>0,1,0) -> 10 | Q43: =$G$43*((1+Inputs!$E$137)^Q1)*IF(SUM(Q5:Q8)>0,1,0) -> 10 | R43: =$G$43*((1+Inputs!$E$137)^R1)*IF(SUM(R5:R8)>0,1,0) -> 10 | S43: =$G$43*((1+Inputs!$E$137)^S1)*IF(SUM(S5:S8)>0,1,0) -> 10 | T43: =$G$43*((1+Inputs!$E$137)^T1)*IF(SUM(T5:T8)>0,1,0) -> 10 | U43: =$G$43*((1+Inputs!$E$137)^U1)*IF(SUM(U5:U8)>0,1,0) -> 10 | V43: =$G$43*((1+Inputs!$E$137)^V1)*IF(SUM(V5:V8)>0,1,0) -> 10 | W43: =$G$43*((1+Inputs!$E$137)^W1)*IF(SUM(W5:W8)>0,1,0) -> 0 | X43: =$G$43*((1+Inputs!$E$137)^X1)*IF(SUM(X5:X8)>0,1,0) -> 0 | Y43: =$G$43*((1+Inputs!$E$137)^Y1)*IF(SUM(Y5:Y8)>0,1,0) -> 0 | Z43: =$G$43*((1+Inputs!$E$137)^Z1)*IF(SUM(Z5:Z8)>0,1,0) -> 0 | AA43: =$G$43*((1+Inputs!$E$137)^AA1)*IF(SUM(AA5:AA8)>0,1,0) -> 0 | AB43: =$G$43*((1+Inputs!$E$137)^AB1)*IF(SUM(AB5:AB8)>0,1,0) -> 0 | AC43: =$G$43*((1+Inputs!$E$137)^AC1)*IF(SUM(AC5:AC8)>0,1,0) -> 0 | AD43: =$G$43*((1+Inputs!$E$137)^AD1)*IF(SUM(AD5:AD8)>0,1,0) -> 0 | AE43: =$G$43*((1+Inputs!$E$137)^AE1)*IF(SUM(AE5:AE8)>0,1,0) -> 0 | AF43: =$G$43*((1+Inputs!$E$137)^AF1)*IF(SUM(AF5:AF8)>0,1,0) -> 0 | AG43: =$G$43*((1+Inputs!$E$137)^AG1)*IF(SUM(AG5:AG8)>0,1,0) -> 0 | AH43: =$G$43*((1+Inputs!$E$137)^AH1)*IF(SUM(AH5:AH8)>0,1,0) -> 0 | AI43: =$G$43*((1+Inputs!$E$137)^AI1)*IF(SUM(AI5:AI8)>0,1,0) -> 0 | AJ43: =$G$43*((1+Inputs!$E$137)^AJ1)*IF(SUM(AJ5:AJ8)>0,1,0) -> 0 | AK43: =$G$43*((1+Inputs!$E$137)^AK1)*IF(SUM(AK5:AK8)>0,1,0) -> 0 | AL43: =$G$43*((1+Inputs!$E$137)^AL1)*IF(SUM(AL5:AL8)>0,1,0) -> 0 | AM43: =$G$43*((1+Inputs!$E$137)^AM1)*IF(SUM(AM5:AM8)>0,1,0) -> 0
E44: INR/SCM | J44: =J43*Inputs!$E$140*Inputs!$E$71/Million -> 29.40821429 | K44: =K43*Inputs!$E$140*Inputs!$E$71/Million -> 29.40821429 | L44: =L43*Inputs!$E$140*Inputs!$E$71/Million -> 29.40821429 | M44: =M43*Inputs!$E$140*Inputs!$E$71/Million -> 29.40821429 | N44: =N43*Inputs!$E$140*Inputs!$E$71/Million -> 29.40821429 | O44: =O43*Inputs!$E$140*Inputs!$E$71/Million -> 29.40821429 | P44: =P43*Inputs!$E$140*Inputs!$E$71/Million -> 29.40821429 | Q44: =Q43*Inputs!$E$140*Inputs!$E$71/Million -> 29.40821429 | R44: =R43*Inputs!$E$140*Inputs!$E$71/Million -> 29.40821429 | S44: =S43*Inputs!$E$140*Inputs!$E$71/Million -> 29.40821429 | T44: =T43*Inputs!$E$140*Inputs!$E$71/Million -> 29.40821429 | U44: =U43*Inputs!$E$140*Inputs!$E$71/Million -> 29.40821429 | V44: =V43*Inputs!$E$140*Inputs!$E$71/Million -> 29.40821429 | W44: =W43*Inputs!$E$140*Inputs!$E$71/Million -> 0 | X44: =X43*Inputs!$E$140*Inputs!$E$71/Million -> 0 | Y44: =Y43*Inputs!$E$140*Inputs!$E$71/Million -> 0 | Z44: =Z43*Inputs!$E$140*Inputs!$E$71/Million -> 0 | AA44: =AA43*Inputs!$E$140*Inputs!$E$71/Million -> 0 | AB44: =AB43*Inputs!$E$140*Inputs!$E$71/Million -> 0 | AC44: =AC43*Inputs!$E$140*Inputs!$E$71/Million -> 0 | AD44: =AD43*Inputs!$E$140*Inputs!$E$71/Million -> 0 | AE44: =AE43*Inputs!$E$140*Inputs!$E$71/Million -> 0 | AF44: =AF43*Inputs!$E$140*Inputs!$E$71/Million -> 0 | AG44: =AG43*Inputs!$E$140*Inputs!$E$71/Million -> 0 | AH44: =AH43*Inputs!$E$140*Inputs!$E$71/Million -> 0 | AI44: =AI43*Inputs!$E$140*Inputs!$E$71/Million -> 0 | AJ44: =AJ43*Inputs!$E$140*Inputs!$E$71/Million -> 0 | AK44: =AK43*Inputs!$E$140*Inputs!$E$71/Million -> 0 | AL44: =AL43*Inputs!$E$140*Inputs!$E$71/Million -> 0 | AM44: =AM43*Inputs!$E$140*Inputs!$E$71/Million -> 0
C46: =C36 -> Royalty | E46: =E44 -> INR/SCM | G46: =Inputs!E111 -> 0.1 | J46: =J44*IF(Dashboard!$D$13="Deepwater",IF(J9<8,$G$46,$G$47),$G$46)*IF(SUM(J5:J8)>0,1,0) -> 2.940821429 | K46: =K44*IF(Dashboard!$D$13="Deepwater",IF(K9<8,$G$46,$G$47),$G$46)*IF(SUM(K5:K8)>0,1,0) -> 2.940821429 | L46: =L44*IF(Dashboard!$D$13="Deepwater",IF(L9<8,$G$46,$G$47),$G$46)*IF(SUM(L5:L8)>0,1,0) -> 2.940821429 | M46: =M44*IF(Dashboard!$D$13="Deepwater",IF(M9<8,$G$46,$G$47),$G$46)*IF(SUM(M5:M8)>0,1,0) -> 2.940821429 | N46: =N44*IF(Dashboard!$D$13="Deepwater",IF(N9<8,$G$46,$G$47),$G$46)*IF(SUM(N5:N8)>0,1,0) -> 2.940821429 | O46: =O44*IF(Dashboard!$D$13="Deepwater",IF(O9<8,$G$46,$G$47),$G$46)*IF(SUM(O5:O8)>0,1,0) -> 2.940821429 | P46: =P44*IF(Dashboard!$D$13="Deepwater",IF(P9<8,$G$46,$G$47),$G$46)*IF(SUM(P5:P8)>0,1,0) -> 2.940821429 | Q46: =Q44*IF(Dashboard!$D$13="Deepwater",IF(Q9<8,$G$46,$G$47),$G$46)*IF(SUM(Q5:Q8)>0,1,0) -> 2.940821429 | R46: =R44*IF(Dashboard!$D$13="Deepwater",IF(R9<8,$G$46,$G$47),$G$46)*IF(SUM(R5:R8)>0,1,0) -> 2.940821429 | S46: =S44*IF(Dashboard!$D$13="Deepwater",IF(S9<8,$G$46,$G$47),$G$46)*IF(SUM(S5:S8)>0,1,0) -> 2.940821429 | T46: =T44*IF(Dashboard!$D$13="Deepwater",IF(T9<8,$G$46,$G$47),$G$46)*IF(SUM(T5:T8)>0,1,0) -> 2.940821429 | U46: =U44*IF(Dashboard!$D$13="Deepwater",IF(U9<8,$G$46,$G$47),$G$46)*IF(SUM(U5:U8)>0,1,0) -> 2.940821429 | V46: =V44*IF(Dashboard!$D$13="Deepwater",IF(V9<8,$G$46,$G$47),$G$46)*IF(SUM(V5:V8)>0,1,0) -> 2.940821429 | W46: =W44*IF(Dashboard!$D$13="Deepwater",IF(W9<8,$G$46,$G$47),$G$46)*IF(SUM(W5:W8)>0,1,0) -> 0 | X46: =X44*IF(Dashboard!$D$13="Deepwater",IF(X9<8,$G$46,$G$47),$G$46)*IF(SUM(X5:X8)>0,1,0) -> 0 | Y46: =Y44*IF(Dashboard!$D$13="Deepwater",IF(Y9<8,$G$46,$G$47),$G$46)*IF(SUM(Y5:Y8)>0,1,0) -> 0 | Z46: =Z44*IF(Dashboard!$D$13="Deepwater",IF(Z9<8,$G$46,$G$47),$G$46)*IF(SUM(Z5:Z8)>0,1,0) -> 0 | AA46: =AA44*IF(Dashboard!$D$13="Deepwater",IF(AA9<8,$G$46,$G$47),$G$46)*IF(SUM(AA5:AA8)>0,1,0) -> 0 | AB46: =AB44*IF(Dashboard!$D$13="Deepwater",IF(AB9<8,$G$46,$G$47),$G$46)*IF(SUM(AB5:AB8)>0,1,0) -> 0 | AC46: =AC44*IF(Dashboard!$D$13="Deepwater",IF(AC9<8,$G$46,$G$47),$G$46)*IF(SUM(AC5:AC8)>0,1,0) -> 0 | AD46: =AD44*IF(Dashboard!$D$13="Deepwater",IF(AD9<8,$G$46,$G$47),$G$46)*IF(SUM(AD5:AD8)>0,1,0) -> 0 | AE46: =AE44*IF(Dashboard!$D$13="Deepwater",IF(AE9<8,$G$46,$G$47),$G$46)*IF(SUM(AE5:AE8)>0,1,0) -> 0 | AF46: =AF44*IF(Dashboard!$D$13="Deepwater",IF(AF9<8,$G$46,$G$47),$G$46)*IF(SUM(AF5:AF8)>0,1,0) -> 0 | AG46: =AG44*IF(Dashboard!$D$13="Deepwater",IF(AG9<8,$G$46,$G$47),$G$46)*IF(SUM(AG5:AG8)>0,1,0) -> 0 | AH46: =AH44*IF(Dashboard!$D$13="Deepwater",IF(AH9<8,$G$46,$G$47),$G$46)*IF(SUM(AH5:AH8)>0,1,0) -> 0 | AI46: =AI44*IF(Dashboard!$D$13="Deepwater",IF(AI9<8,$G$46,$G$47),$G$46)*IF(SUM(AI5:AI8)>0,1,0) -> 0 | AJ46: =AJ44*IF(Dashboard!$D$13="Deepwater",IF(AJ9<8,$G$46,$G$47),$G$46)*IF(SUM(AJ5:AJ8)>0,1,0) -> 0 | AK46: =AK44*IF(Dashboard!$D$13="Deepwater",IF(AK9<8,$G$46,$G$47),$G$46)*IF(SUM(AK5:AK8)>0,1,0) -> 0 | AL46: =AL44*IF(Dashboard!$D$13="Deepwater",IF(AL9<8,$G$46,$G$47),$G$46)*IF(SUM(AL5:AL8)>0,1,0) -> 0 | AM46: =AM44*IF(Dashboard!$D$13="Deepwater",IF(AM9<8,$G$46,$G$47),$G$46)*IF(SUM(AM5:AM8)>0,1,0) -> 0
G47: =IF(Dashboard!$D$13="Deepwater",5%,"") -> 
C48: Gas transportation | E48: =E44 -> INR/SCM | G48: =Inputs!$E$100 -> 0 | J48: =$G$48*Inputs!$E$140*Inputs!$E$71/Million -> 0 | K48: =$G$48*Inputs!$E$140*Inputs!$E$71/Million -> 0 | L48: =$G$48*Inputs!$E$140*Inputs!$E$71/Million -> 0 | M48: =$G$48*Inputs!$E$140*Inputs!$E$71/Million -> 0 | N48: =$G$48*Inputs!$E$140*Inputs!$E$71/Million -> 0 | O48: =$G$48*Inputs!$E$140*Inputs!$E$71/Million -> 0 | P48: =$G$48*Inputs!$E$140*Inputs!$E$71/Million -> 0 | Q48: =$G$48*Inputs!$E$140*Inputs!$E$71/Million -> 0 | R48: =$G$48*Inputs!$E$140*Inputs!$E$71/Million -> 0 | S48: =$G$48*Inputs!$E$140*Inputs!$E$71/Million -> 0 | T48: =$G$48*Inputs!$E$140*Inputs!$E$71/Million -> 0 | U48: =$G$48*Inputs!$E$140*Inputs!$E$71/Million -> 0 | V48: =$G$48*Inputs!$E$140*Inputs!$E$71/Million -> 0 | W48: =$G$48*Inputs!$E$140*Inputs!$E$71/Million -> 0 | X48: =$G$48*Inputs!$E$140*Inputs!$E$71/Million -> 0 | Y48: =$G$48*Inputs!$E$140*Inputs!$E$71/Million -> 0 | Z48: =$G$48*Inputs!$E$140*Inputs!$E$71/Million -> 0 | AA48: =$G$48*Inputs!$E$140*Inputs!$E$71/Million -> 0 | AB48: =$G$48*Inputs!$E$140*Inputs!$E$71/Million -> 0 | AC48: =$G$48*Inputs!$E$140*Inputs!$E$71/Million -> 0 | AD48: =$G$48*Inputs!$E$140*Inputs!$E$71/Million -> 0 | AE48: =$G$48*Inputs!$E$140*Inputs!$E$71/Million -> 0 | AF48: =$G$48*Inputs!$E$140*Inputs!$E$71/Million -> 0 | AG48: =$G$48*Inputs!$E$140*Inputs!$E$71/Million -> 0 | AH48: =$G$48*Inputs!$E$140*Inputs!$E$71/Million -> 0 | AI48: =$G$48*Inputs!$E$140*Inputs!$E$71/Million -> 0 | AJ48: =$G$48*Inputs!$E$140*Inputs!$E$71/Million -> 0 | AK48: =$G$48*Inputs!$E$140*Inputs!$E$71/Million -> 0 | AL48: =$G$48*Inputs!$E$140*Inputs!$E$71/Million -> 0 | AM48: =$G$48*Inputs!$E$140*Inputs!$E$71/Million -> 0
C49: Net Gas Price | E49: =E46 -> INR/SCM | J49: =J44-J46 -> 26.46739286 | K49: =K44-K46 -> 26.46739286 | L49: 26.46739286 | M49: 26.46739286 | N49: 26.46739286 | O49: 26.46739286 | P49: 26.46739286 | Q49: 26.46739286 | R49: 26.46739286 | S49: 26.46739286 | T49: 26.46739286 | U49: 26.46739286 | V49: 26.46739286 | W49: 0 | X49: 0 | Y49: 0 | Z49: 0 | AA49: 0 | AB49: 0 | AC49: 0 | AD49: 0 | AE49: 0 | AF49: 0 | AG49: 0 | AH49: 0 | AI49: 0 | AJ49: 0 | AK49: 0 | AL49: 0 | AM49: 0
E50: USD/SCM | J50: =J49/Inputs!$E$140 -> 0.3950357143 | K50: =K49/Inputs!$E$140 -> 0.3950357143 | L50: =L49/Inputs!$E$140 -> 0.3950357143 | M50: =M49/Inputs!$E$140 -> 0.3950357143 | N50: =N49/Inputs!$E$140 -> 0.3950357143 | O50: =O49/Inputs!$E$140 -> 0.3950357143 | P50: =P49/Inputs!$E$140 -> 0.3950357143 | Q50: =Q49/Inputs!$E$140 -> 0.3950357143 | R50: =R49/Inputs!$E$140 -> 0.3950357143 | S50: =S49/Inputs!$E$140 -> 0.3950357143 | T50: =T49/Inputs!$E$140 -> 0.3950357143 | U50: =U49/Inputs!$E$140 -> 0.3950357143 | V50: =V49/Inputs!$E$140 -> 0.3950357143 | W50: =W49/Inputs!$E$140 -> 0 | X50: =X49/Inputs!$E$140 -> 0 | Y50: =Y49/Inputs!$E$140 -> 0 | Z50: =Z49/Inputs!$E$140 -> 0 | AA50: =AA49/Inputs!$E$140 -> 0 | AB50: =AB49/Inputs!$E$140 -> 0 | AC50: =AC49/Inputs!$E$140 -> 0 | AD50: =AD49/Inputs!$E$140 -> 0 | AE50: =AE49/Inputs!$E$140 -> 0 | AF50: =AF49/Inputs!$E$140 -> 0 | AG50: =AG49/Inputs!$E$140 -> 0 | AH50: =AH49/Inputs!$E$140 -> 0 | AI50: =AI49/Inputs!$E$140 -> 0 | AJ50: =AJ49/Inputs!$E$140 -> 0 | AK50: =AK49/Inputs!$E$140 -> 0 | AL50: =AL49/Inputs!$E$140 -> 0 | AM50: =AM49/Inputs!$E$140 -> 0
C52: Revenue
C53: Oil | E53: USD Mn | G53: =SUM(J53:AM53) -> 1462.593904 | J53: =J41*J22 -> 0 | K53: =K41*K22 -> 0 | L53: 316.6440411 | M53: 75.39143836 | N53: 90.46972603 | O53: 105.5480137 | P53: 120.6263014 | Q53: 180.9394521 | R53: 135.704589 | S53: 150.7828767 | T53: 120.6263014 | U53: 105.5480137 | V53: 60.31315068 | W53: 0 | X53: 0 | Y53: 0 | Z53: 0 | AA53: 0 | AB53: 0 | AC53: 0 | AD53: 0 | AE53: 0 | AF53: 0 | AG53: 0 | AH53: 0 | AI53: 0 | AJ53: 0 | AK53: 0 | AL53: 0 | AM53: 0
C54: Gas | E54: USD Mn | G54: =SUM(J54:AM54) -> 191.5923214 | J54: =J50*J23*Billion/Million -> 0 | K54: 0 | L54: 41.47875 | M54: 9.875892857 | N54: 11.85107143 | O54: 13.82625 | P54: 15.80142857 | Q54: 23.70214286 | R54: 17.77660714 | S54: 19.75178571 | T54: 15.80142857 | U54: 13.82625 | V54: 7.900714286 | W54: 0 | X54: 0 | Y54: 0 | Z54: 0 | AA54: 0 | AB54: 0 | AC54: 0 | AD54: 0 | AE54: 0 | AF54: 0 | AG54: 0 | AH54: 0 | AI54: 0 | AJ54: 0 | AK54: 0 | AL54: 0 | AM54: 0
C55: Total | E55: USD Mn | G55: =SUM(J55:AM55) -> 1654.186226 | J55: =SUM(J53:J54) -> 0 | K55: =SUM(K53:K54) -> 0 | L55: 358.1227911 | M55: 85.26733121 | N55: 102.3207975 | O55: 119.3742637 | P55: 136.4277299 | Q55: 204.6415949 | R55: 153.4811962 | S55: 170.5346624 | T55: 136.4277299 | U55: 119.3742637 | V55: 68.21386497 | W55: 0 | X55: 0 | Y55: 0 | Z55: 0 | AA55: 0 | AB55: 0 | AC55: 0 | AD55: 0 | AE55: 0 | AF55: 0 | AG55: 0 | AH55: 0 | AI55: 0 | AJ55: 0 | AK55: 0 | AL55: 0 | AM55: 0
C56: Average Rev per day | E56: USD Mn | G56: =SUM(J56:AM56) -> 4.529591606 | J56: =J55/(_xlfn.DAYS(J3,J2)+1) -> 0 | K56: 0 | L56: 0.9811583318 | M56: 0.2336091266 | N56: 0.2795650204 | O56: 0.3270527773 | P56: 0.3737746026 | Q56: 0.5606619039 | R56: 0.4193475306 | S56: 0.4672182532 | T56: 0.3737746026 | U56: 0.3270527773 | V56: 0.1863766802 | W56: 0 | X56: 0 | Y56: 0 | Z56: 0 | AA56: 0 | AB56: 0 | AC56: 0 | AD56: 0 | AE56: 0 | AF56: 0 | AG56: 0 | AH56: 0 | AI56: 0 | AJ56: 0 | AK56: 0 | AL56: 0 | AM56: 0
C58: =Inputs!D144 -> LRP (Rev per day) | E58: =Inputs!F144 -> USD Mn | G58: =Inputs!E144 -> 0.01
C59: =Inputs!D145 -> HRP (Rev per day) | E59: =Inputs!F145 -> USD Mn | G59: =Inputs!E145 -> 1
